{"text_format":"2","workbook":"xlsx","n_sheets":3,"sheets":["Sheet1","Sheet2","Sheet3"],"not_rendered":{"charts":0,"images":0,"macros":0,"external_links":0,"defined_names":0,"comments":0,"pivot_tables":0},"unopened":[],"bounds":{"document_bytes":16777216,"sheet_cells":100000,"run_cost":"one","rows_first":2000,"rows_last":500,"rows_between":2000,"halvings":0,"cell_chars":16384,"cell_head_chars":4096},"cells_cut":0,"cells_raw":0,"read":"whole","date_system":"1900"}

{"sheet":"Sheet1","index":0,"n_rows":118,"n_cols":3,"rows_kept":118,"cut":false,"hidden":false,"merged":[]}
["所属文件","所在行数","FINDBUGS描述"]
[{"$f":"LEFT(Sheet2!A2,Sheet2!C2+3)","v":"yjpt/java_src/com/jtgh/yjpt/client/yjgl/yjyl/YjylService.java"},{"$f":"Sheet2!G2","v":"36 "},{"$f":"RIGHT(Sheet2!A2,Sheet2!E2-Sheet2!D2)","v":"Dead store to e in com.jtgh.yjpt.client.yjgl.yjyl.YjylService.<static initializer for YjylService>() [Of Concern(15), High confidence]"}]
[{"$f":"LEFT(Sheet2!A3,Sheet2!C3+3)","v":"yjpt/java_src/com/jtgh/yjpt/entity/common/CodeEntity.java"},{"$f":"Sheet2!G3","v":"94 "},{"$f":"RIGHT(Sheet2!A3,Sheet2!E3-Sheet2!D3)","v":"com.jtgh.yjpt.entity.common.CodeEntity defines clone() but doesn't implement Cloneable [Troubling(14), High confidence]"}]
[{"$f":"LEFT(Sheet2!A4,Sheet2!C4+3)","v":"yjpt/java_src/com/jtgh/yjpt/webService/common/AuthHandler.java"},{"$f":"Sheet2!G4","v":"58 "},{"$f":"RIGHT(Sheet2!A4,Sheet2!E4-Sheet2!D4)","v":"Possible null pointer dereference of it in com.jtgh.yjpt.webService.common.AuthHandler.handleMessage(SOAPMessageContext) [Scary(8), Normal confidence]"}]
[{"$f":"LEFT(Sheet2!A5,Sheet2!C5+3)","v":"yjpt/java_src/com/jtgh/yjpt/webService/common/AuthHandler.java"},{"$f":"Sheet2!G5","v":"62 "},{"$f":"RIGHT(Sheet2!A5,Sheet2!E5-Sheet2!D5)","v":"Possible null pointer dereference of value in com.jtgh.yjpt.webService.common.AuthHandler.handleMessage(SOAPMessageContext) [Scary(6), High confidence]"}]
[{"$f":"LEFT(Sheet2!A6,Sheet2!C6+3)","v":"yjpt/java_src/com/jtgh/yjpt/webService/common/AuthHandler.java"},{"$f":"Sheet2!G6","v":"54 "},{"$f":"RIGHT(Sheet2!A6,Sheet2!E6-Sheet2!D6)","v":"Possible null pointer dereference of soapHeader in com.jtgh.yjpt.webService.common.AuthHandler.handleMessage(SOAPMessageContext) [Scary(6), High confidence]"}]
[{"$f":"LEFT(Sheet2!A7,Sheet2!C7+3)","v":"yjpt/java_src/com/jtgh/yjpt/controller/zysqbp/ZysqbpController.java"},{"$f":"Sheet2!G7","v":"844 "},{"$f":"RIGHT(Sheet2!A7,Sheet2!E7-Sheet2!D7)","v":"Call to Long.equals(Integer) in com.jtgh.yjpt.controller.zysqbp.ZysqbpController.getWxzyqkhzFile(Long, HttpServletResponse, HttpServletRequest) [Scariest(1), High confidence]"}]
[{"$f":"LEFT(Sheet2!A8,Sheet2!C8+3)","v":"yjpt/java_src/com/jtgh/yjpt/client/sys/WxhwpmService.java"},{"$f":"Sheet2!G8","v":"39 "},{"$f":"RIGHT(Sheet2!A8,Sheet2!E8-Sheet2!D8)","v":"Dead store to e in com.jtgh.yjpt.client.sys.WxhwpmService.<static initializer for WxhwpmService>() [Of Concern(15), High confidence]"}]
[{"$f":"LEFT(Sheet2!A9,Sheet2!C9+3)","v":"yjpt/java_src/com/jtgh/yjpt/service/impl/check/DcServiceImpl.java"},{"$f":"Sheet2!G9","v":"150 "},{"$f":"RIGHT(Sheet2!A9,Sheet2!E9-Sheet2!D9)","v":"Possible null pointer dereference of doc in com.jtgh.yjpt.service.impl.check.DcServiceImpl.setGztx(DcEntity, UserEntity) on exception path [Troubling(11), Normal confidence]"}]
[{"$f":"LEFT(Sheet2!A10,Sheet2!C10+3)","v":"yjpt/java_src/com/jtgh/yjpt/controller/bagl/aqpjbgjzgfalsba/AqpjbgjzgfalsbaController.java"},{"$f":"Sheet2!G10","v":"238 "},{"$f":"RIGHT(Sheet2!A10,Sheet2!E10-Sheet2!D10)","v":"Possible null pointer dereference of dataset in com.jtgh.yjpt.controller.bagl.aqpjbgjzgfalsba.AqpjbgjzgfalsbaController.print(List) on exception path [Troubling(11), Normal confidence]"}]
[{"$f":"LEFT(Sheet2!A11,Sheet2!C11+3)","v":"yjpt/java_src/com/jtgh/yjpt/controller/bagl/aqpjbgjzgfalsba/AqpjbgjzgfalsbaController.java"},{"$f":"Sheet2!G11","v":"90 "},{"$f":"RIGHT(Sheet2!A11,Sheet2!E11-Sheet2!D11)","v":"Call to String.equals(com.jtgh.yjpt.entity.jyr.JyrEntity) in com.jtgh.yjpt.controller.bagl.aqpjbgjzgfalsba.AqpjbgjzgfalsbaController$1.toPredicate(Root, CriteriaQuery, CriteriaBuilder) [Scariest(1), High confidence]"}]
[{"$f":"LEFT(Sheet2!A12,Sheet2!C12+3)","v":"yjpt/java_src/com/jtgh/yjpt/service/impl/yjzyxxgl/YjwzxxServiceImpl.java"},{"$f":"Sheet2!G12","v":"448 "},{"$f":"RIGHT(Sheet2!A12,Sheet2!E12-Sheet2!D12)","v":"Dead store to entity in com.jtgh.yjpt.service.impl.yjzyxxgl.YjwzxxServiceImpl.save(YjwzxxEntity, List, List) [Of Concern(15), High confidence]"}]
[{"$f":"LEFT(Sheet2!A13,Sheet2!C13+3)","v":"yjpt/java_src/com/jtgh/yjpt/client/yjgl/yjyx/YjyxService.java"},{"$f":"Sheet2!G13","v":"39 "},{"$f":"RIGHT(Sheet2!A13,Sheet2!E13-Sheet2!D13)","v":"Dead store to e in com.jtgh.yjpt.client.yjgl.yjyx.YjyxService.<static initializer for YjyxService>() [Of Concern(15), High confidence]"}]
[{"$f":"LEFT(Sheet2!A14,Sheet2!C14+3)","v":"yjpt/java_src/com/jtgh/yjpt/webService/jyrjcxx/gksssb/GksssbWebService.java"},{"$f":"Sheet2!G14","v":"58 "},{"$f":"RIGHT(Sheet2!A14,Sheet2!E14-Sheet2!D14)","v":"Dead store to entity in com.jtgh.yjpt.webService.jyrjcxx.gksssb.GksssbWebService.saveEntityAndFj(GksssbEntity, AccessoryEntity) [Of Concern(15), High confidence]"}]
[{"$f":"LEFT(Sheet2!A15,Sheet2!C15+3)","v":"yjpt/java_src/com/jtgh/yjpt/service/impl/jyr/JyrServiceImpl.java"},{"$f":"Sheet2!G15","v":"564 "},{"$f":"RIGHT(Sheet2!A15,Sheet2!E15-Sheet2!D15)","v":"Dead store to dcxxeditlist in com.jtgh.yjpt.service.impl.jyr.JyrServiceImpl.save(JyrEntity, List, List, List, List, List, List, String) [Of Concern(15), High confidence]"}]
[{"$f":"LEFT(Sheet2!A16,Sheet2!C16+3)","v":"yjpt/java_src/com/jtgh/yjpt/service/impl/jyr/JyrServiceImpl.java"},{"$f":"Sheet2!G16","v":"415 "},{"$f":"RIGHT(Sheet2!A16,Sheet2!E16-Sheet2!D16)","v":"Possible null pointer dereference of res in com.jtgh.yjpt.service.impl.jyr.JyrServiceImpl.countJyr(Long) [Scary(8), Normal confidence]"}]
[{"$f":"LEFT(Sheet2!A17,Sheet2!C17+3)","v":"yjpt/java_src/com/jtgh/yjpt/controller/zysqbp/ZysqbpController.java"},{"$f":"Sheet2!G17","v":"255 "},{"$f":"RIGHT(Sheet2!A17,Sheet2!E17-Sheet2!D17)","v":"Possible null pointer dereference of dataset in com.jtgh.yjpt.controller.zysqbp.ZysqbpController.print(List) on exception path [Troubling(11), Normal confidence]"}]
[{"$f":"LEFT(Sheet2!A18,Sheet2!C18+3)","v":"yjpt/java_src/com/jtgh/yjpt/controller/zysqbp/ZysqbpController.java"},{"$f":"Sheet2!G18","v":"399 "},{"$f":"RIGHT(Sheet2!A18,Sheet2!E18-Sheet2!D18)","v":"Null pointer dereference of list in com.jtgh.yjpt.controller.zysqbp.ZysqbpController.listQy() [Scary(5), High confidence]"}]
[{"$f":"LEFT(Sheet2!A19,Sheet2!C19+3)","v":"yjpt/java_src/com/jtgh/yjpt/controller/qlyg/SuperviseController.java"},{"$f":"Sheet2!G19","v":"54 "},{"$f":"RIGHT(Sheet2!A19,Sheet2!E19-Sheet2!D19)","v":"Null passed for nonnull parameter of com.jtgh.yjpt.controller.BaseController.createBusinessContext(Page) in com.jtgh.yjpt.controller.qlyg.SuperviseController.list(SinglePageRequest, Long, SuperviseEntity) [Scary(8), Normal confidence]"}]
[{"$f":"LEFT(Sheet2!A20,Sheet2!C20+3)","v":"yjpt/java_src/com/jtgh/yjpt/service/impl/jyrxxgl/RyjbxxServiceImpl.java"},{"$f":"Sheet2!G20","v":"235 "},{"$f":"RIGHT(Sheet2!A20,Sheet2!E20-Sheet2!D20)","v":"Dead store to ryjbxxEntity in com.jtgh.yjpt.service.impl.jyrxxgl.RyjbxxServiceImpl.save(RyjbxxEntity, List, List, String) [Of Concern(15), High confidence]"}]
[{"$f":"LEFT(Sheet2!A21,Sheet2!C21+3)","v":"yjpt/java_src/com/jtgh/yjpt/service/impl/jyrxxgl/RyjbxxServiceImpl.java"},{"$f":"Sheet2!G21","v":"239 "},{"$f":"RIGHT(Sheet2!A21,Sheet2!E21-Sheet2!D21)","v":"Dead store to zsList in com.jtgh.yjpt.service.impl.jyrxxgl.RyjbxxServiceImpl.save(RyjbxxEntity, List, List, String) [Of Concern(15), High confidence]"}]
[{"$f":"LEFT(Sheet2!A22,Sheet2!C22+3)","v":"yjpt/java_src/com/jtgh/yjpt/webService/sys/WxhwpmWebService.java"},{"$f":"Sheet2!G22","v":"25 "},{"$f":"RIGHT(Sheet2!A22,Sheet2!E22-Sheet2!D22)","v":"Dead store to entity in com.jtgh.yjpt.webService.sys.WxhwpmWebService.save(WxhwpmEntity, String) [Of Concern(15), High confidence]"}]
[{"$f":"LEFT(Sheet2!A23,Sheet2!C23+3)","v":"yjpt/java_src/com/jtgh/yjpt/common/servlet/SystemJavaAdapter.java"},{"$f":"Sheet2!G23","v":"55 "},{"$f":"RIGHT(Sheet2!A23,Sheet2!E23-Sheet2!D23)","v":"Nullcheck of session at line 55 of value previously dereferenced in com.jtgh.yjpt.common.servlet.SystemJavaAdapter.invoke(Message) [Troubling(11), Normal confidence]"}]
[{"$f":"LEFT(Sheet2!A24,Sheet2!C24+3)","v":"yjpt/java_src/com/jtgh/yjpt/client/yjzyxxgl/sgalgl/SgalglService.java"},{"$f":"Sheet2!G24","v":"37 "},{"$f":"RIGHT(Sheet2!A24,Sheet2!E24-Sheet2!D24)","v":"Dead store to e in com.jtgh.yjpt.client.yjzyxxgl.sgalgl.SgalglService.<static initializer for SgalglService>() [Of Concern(15), High confidence]"}]
[{"$f":"LEFT(Sheet2!A25,Sheet2!C25+3)","v":"yjpt/java_src/com/jtgh/yjpt/controller/aqsssbxx/AqsssbxxxxController.java"},{"$f":"Sheet2!G25","v":"70 "},{"$f":"RIGHT(Sheet2!A25,Sheet2!E25-Sheet2!D25)","v":"java.math.BigDecimal is incompatible with expected argument type Long in com.jtgh.yjpt.controller.aqsssbxx.AqsssbxxxxController.setSelected(List, Long) [Scariest(1), High confidence]"}]
[{"$f":"LEFT(Sheet2!A26,Sheet2!C26+3)","v":"yjpt/java_src/com/jtgh/yjpt/controller/aqsssbxx/AqsssbxxxxController.java"},{"$f":"Sheet2!G26","v":"95 "},{"$f":"RIGHT(Sheet2!A26,Sheet2!E26-Sheet2!D26)","v":"java.math.BigDecimal is incompatible with expected argument type Long in com.jtgh.yjpt.controller.aqsssbxx.AqsssbxxxxController.setChildrenList(AqsssbxxxxEntity, List) [Scariest(1), High confidence]"}]
[{"$f":"LEFT(Sheet2!A27,Sheet2!C27+3)","v":"yjpt/java_src/com/jtgh/qlyg/dao/common/QlygCustomRepository.java"},{"$f":"Sheet2!G27","v":"57 "},{"$f":"RIGHT(Sheet2!A27,Sheet2!E27-Sheet2!D27)","v":"query is null guaranteed to be dereferenced in com.jtgh.qlyg.dao.common.QlygCustomRepository.findAll(Specification, Pageable) on exception path [Troubling(11), Normal confidence]"}]
[{"$f":"LEFT(Sheet2!A28,Sheet2!C28+3)","v":"yjpt/java_src/com/jtgh/yjpt/service/impl/bagl/jdhxpandzdwxyba/GqnwxydjbabServiceImpl.java"},{"$f":"Sheet2!G28","v":"330 "},{"$f":"RIGHT(Sheet2!A28,Sheet2!E28-Sheet2!D28)","v":"Possible null pointer dereference of doc in com.jtgh.yjpt.service.impl.bagl.jdhxpandzdwxyba.GqnwxydjbabServiceImpl.createBackTemplate(Long, String, String, String, UserEntity, String) on exception path [Troubling(11), Normal confidence]"}]
[{"$f":"LEFT(Sheet2!A29,Sheet2!C29+3)","v":"yjpt/java_src/com/jtgh/yjpt/controller/zyfzndjy/GkwxhwzyfzblhhzController.java"},{"$f":"Sheet2!G29","v":"211 "},{"$f":"RIGHT(Sheet2!A29,Sheet2!E29-Sheet2!D29)","v":"Null passed for nonnull parameter of com.jtgh.yjpt.controller.BaseController.createBusinessContext(Page) in com.jtgh.yjpt.controller.zyfzndjy.GkwxhwzyfzblhhzController.list(Long, Pageable, JyrEntity, CodeEntity, GqEntity, CodeEntity, String, String, String) [Scary(8), Normal confidence]"}]
[{"$f":"LEFT(Sheet2!A30,Sheet2!C30+3)","v":"yjpt/java_src/com/jtgh/yjpt/service/impl/bagl/jdhxpandzdwxyba/GqnwxydjbabServiceImpl.java"},{"$f":"Sheet2!G30","v":"277 "},{"$f":"RIGHT(Sheet2!A30,Sheet2!E30-Sheet2!D30)","v":"Possible null pointer dereference of doc in com.jtgh.yjpt.service.impl.bagl.jdhxpandzdwxyba.GqnwxydjbabServiceImpl.createPassTemplate(Long, String, String, String, Date, String, UserEntity, String) on exception path [Troubling(11), Normal confidence]"}]
[{"$f":"LEFT(Sheet2!A31,Sheet2!C31+3)","v":"yjpt/java_src/com/jtgh/yjpt/controller/zyfzndjy/GkwxhwzyfzblhhzController.java"},{"$f":"Sheet2!G31","v":"582 "},{"$f":"RIGHT(Sheet2!A31,Sheet2!E31-Sheet2!D31)","v":"Possible null pointer dereference of result in com.jtgh.yjpt.controller.zyfzndjy.GkwxhwzyfzblhhzController.doViewInit(Long, Long) [Scary(8), Normal confidence]"}]
[{"$f":"LEFT(Sheet2!A32,Sheet2!C32+3)","v":"yjpt/java_src/com/jtgh/yjpt/controller/zyfzndjy/GkwxhwzyfzblhhzController.java"},{"$f":"Sheet2!G32","v":"284 "},{"$f":"RIGHT(Sheet2!A32,Sheet2!E32-Sheet2!D32)","v":"Possible null pointer dereference of dataset in com.jtgh.yjpt.controller.zyfzndjy.GkwxhwzyfzblhhzController.print(List) on exception path [Troubling(11), Normal confidence]"}]
[{"$f":"LEFT(Sheet2!A33,Sheet2!C33+3)","v":"yjpt/java_src/com/jtgh/yjpt/controller/zyfzndjy/GkwxhwzyfzblhhzController.java"},{"$f":"Sheet2!G33","v":"504 "},{"$f":"RIGHT(Sheet2!A33,Sheet2!E33-Sheet2!D33)","v":"Null pointer dereference of list in com.jtgh.yjpt.controller.zyfzndjy.GkwxhwzyfzblhhzController.audit(String, Date, GkwxhwzyfzblhhzEntity, boolean) [Scary(5), High confidence]"}]
[{"$f":"LEFT(Sheet2!A34,Sheet2!C34+3)","v":"yjpt/java_src/com/jtgh/yjpt/controller/auth/ConfigController.java"},{"$f":"Sheet2!G34","v":"121 "},{"$f":"RIGHT(Sheet2!A34,Sheet2!E34-Sheet2!D34)","v":"Write to static field com.jtgh.yjpt.common.servlet.InitServlet.groupcodeMap from instance method com.jtgh.yjpt.controller.auth.ConfigController.save(Long, CodeEntity) [Of Concern(15), High confidence]"}]
[{"$f":"LEFT(Sheet2!A35,Sheet2!C35+3)","v":"yjpt/java_src/com/jtgh/yjpt/dao/common/MyCustomRepository.java"},{"$f":"Sheet2!G35","v":"112 "},{"$f":"RIGHT(Sheet2!A35,Sheet2!E35-Sheet2!D35)","v":"query is null guaranteed to be dereferenced in com.jtgh.yjpt.dao.common.MyCustomRepository.findAll(Specification, Pageable) on exception path [Troubling(11), Normal confidence]"}]
[{"$f":"LEFT(Sheet2!A36,Sheet2!C36+3)","v":"yjpt/java_src/com/jtgh/yjpt/controller/jsxmqasc/GkjsxmaqscController.java"},{"$f":"Sheet2!G36","v":"81 "},{"$f":"RIGHT(Sheet2!A36,Sheet2!E36-Sheet2!D36)","v":"Call to String.equals(com.jtgh.yjpt.entity.common.CodeEntity) in com.jtgh.yjpt.controller.jsxmqasc.GkjsxmaqscController$1.toPredicate(Root, CriteriaQuery, CriteriaBuilder) [Scariest(1), High confidence]"}]
[{"$f":"LEFT(Sheet2!A37,Sheet2!C37+3)","v":"yjpt/java_src/com/jtgh/yjpt/controller/zyfzns/WxhwzyfznsController.java"},{"$f":"Sheet2!G37","v":"477 "},{"$f":"RIGHT(Sheet2!A37,Sheet2!E37-Sheet2!D37)","v":"Possible null pointer dereference of result in com.jtgh.yjpt.controller.zyfzns.WxhwzyfznsController.doViewInit(Long, Long) [Scary(8), Normal confidence]"}]
[{"$f":"LEFT(Sheet2!A38,Sheet2!C38+3)","v":"yjpt/java_src/com/jtgh/yjpt/controller/common/JsfxxwhController.java"},{"$f":"Sheet2!G38","v":"100 "},{"$f":"RIGHT(Sheet2!A38,Sheet2!E38-Sheet2!D38)","v":"Dead store to accs in com.jtgh.yjpt.controller.common.JsfxxwhController.doSave(JsfxxwhEntity, List, Long) [Of Concern(15), High confidence]"}]
[{"$f":"LEFT(Sheet2!A39,Sheet2!C39+3)","v":"yjpt/java_src/com/jtgh/yjpt/controller/jsxmqasc/GkjsxmaqscController.java"},{"$f":"Sheet2!G39","v":"86 "},{"$f":"RIGHT(Sheet2!A39,Sheet2!E39-Sheet2!D39)","v":"Call to String.equals(com.jtgh.yjpt.entity.gkgq.GqEntity) in com.jtgh.yjpt.controller.jsxmqasc.GkjsxmaqscController$1.toPredicate(Root, CriteriaQuery, CriteriaBuilder) [Scariest(1), High confidence]"}]
[{"$f":"LEFT(Sheet2!A40,Sheet2!C40+3)","v":"yjpt/java_src/com/jtgh/yjpt/client/jyr/ryjbqk/RyjbqkxxService.java"},{"$f":"Sheet2!G40","v":"37 "},{"$f":"RIGHT(Sheet2!A40,Sheet2!E40-Sheet2!D40)","v":"Dead store to e in com.jtgh.yjpt.client.jyr.ryjbqk.RyjbqkxxService.<static initializer for RyjbqkxxService>() [Of Concern(15), High confidence]"}]
[{"$f":"LEFT(Sheet2!A41,Sheet2!C41+3)","v":"yjpt/java_src/com/jtgh/yjpt/controller/jsxmqasc/GkjsxmaqscController.java"},{"$f":"Sheet2!G41","v":"77 "},{"$f":"RIGHT(Sheet2!A41,Sheet2!E41-Sheet2!D41)","v":"Call to String.equals(com.jtgh.yjpt.entity.jyr.JyrEntity) in com.jtgh.yjpt.controller.jsxmqasc.GkjsxmaqscController$1.toPredicate(Root, CriteriaQuery, CriteriaBuilder) [Scariest(1), High confidence]"}]
[{"$f":"LEFT(Sheet2!A42,Sheet2!C42+3)","v":"yjpt/java_src/com/jtgh/yjpt/client/jyr/JyrService.java"},{"$f":"Sheet2!G42","v":"37 "},{"$f":"RIGHT(Sheet2!A42,Sheet2!E42-Sheet2!D42)","v":"Dead store to e in com.jtgh.yjpt.client.jyr.JyrService.<static initializer for JyrService>() [Of Concern(15), High confidence]"}]
[{"$f":"LEFT(Sheet2!A43,Sheet2!C43+3)","v":"yjpt/java_src/com/jtgh/yjpt/entity/jyr/JyrEntity.java"},{"$f":"Sheet2!G43","v":"498 "},{"$f":"RIGHT(Sheet2!A43,Sheet2!E43-Sheet2!D43)","v":"com.jtgh.yjpt.entity.jyr.JyrEntity defines clone() but doesn't implement Cloneable [Troubling(14), High confidence]"}]
[{"$f":"LEFT(Sheet2!A44,Sheet2!C44+3)","v":"yjpt/java_src/com/jtgh/yjpt/controller/zyfzns/WxhwzyfznsController.java"},{"$f":"Sheet2!G44","v":"199 "},{"$f":"RIGHT(Sheet2!A44,Sheet2!E44-Sheet2!D44)","v":"Possible null pointer dereference of dataset in com.jtgh.yjpt.controller.zyfzns.WxhwzyfznsController.print(List) on exception path [Troubling(11), Normal confidence]"}]
[{"$f":"LEFT(Sheet2!A45,Sheet2!C45+3)","v":"yjpt/java_src/com/jtgh/yjpt/service/impl/sgalgl/SgalglServiceImpl.java"},{"$f":"Sheet2!G45","v":"443 "},{"$f":"RIGHT(Sheet2!A45,Sheet2!E45-Sheet2!D45)","v":"Dead store to entity in com.jtgh.yjpt.service.impl.sgalgl.SgalglServiceImpl.saveAllEntity(SgalglEntity, List, List) [Of Concern(15), High confidence]"}]
[{"$f":"LEFT(Sheet2!A46,Sheet2!C46+3)","v":"yjpt/java_src/com/jtgh/yjpt/client/yjzyxxgl/zyyjdw/zyyjdw/ZyyjdwService.java"},{"$f":"Sheet2!G46","v":"37 "},{"$f":"RIGHT(Sheet2!A46,Sheet2!E46-Sheet2!D46)","v":"Dead store to e in com.jtgh.yjpt.client.yjzyxxgl.zyyjdw.zyyjdw.ZyyjdwService.<static initializer for ZyyjdwService>() [Of Concern(15), High confidence]"}]
[{"$f":"LEFT(Sheet2!A47,Sheet2!C47+3)","v":"yjpt/java_src/com/jtgh/yjpt/client/bagl/yjyaba/YjyabaService.java"},{"$f":"Sheet2!G47","v":"39 "},{"$f":"RIGHT(Sheet2!A47,Sheet2!E47-Sheet2!D47)","v":"Dead store to e in com.jtgh.yjpt.client.bagl.yjyaba.YjyabaService.<static initializer for YjyabaService>() [Of Concern(15), High confidence]"}]
[{"$f":"LEFT(Sheet2!A48,Sheet2!C48+3)","v":"yjpt/java_src/com/jtgh/yjpt/client/gq/GqService.java"},{"$f":"Sheet2!G48","v":"39 "},{"$f":"RIGHT(Sheet2!A48,Sheet2!E48-Sheet2!D48)","v":"Dead store to e in com.jtgh.yjpt.client.gq.GqService.<static initializer for GqService>() [Of Concern(15), High confidence]"}]
[{"$f":"LEFT(Sheet2!A49,Sheet2!C49+3)","v":"yjpt/java_src/com/jtgh/yjpt/controller/bagl/jdhxpandzdwxyba/ZdwxybaController.java"},{"$f":"Sheet2!G49","v":"72 "},{"$f":"RIGHT(Sheet2!A49,Sheet2!E49-Sheet2!D49)","v":"Nullcheck of gqid at line 72 of value previously dereferenced in com.jtgh.yjpt.controller.bagl.jdhxpandzdwxyba.ZdwxybaController.list(Pageable, Long, Long, Long, Long) [Troubling(11), Normal confidence]"}]
[{"$f":"LEFT(Sheet2!A50,Sheet2!C50+3)","v":"yjpt/java_src/com/jtgh/yjpt/client/jyr/gksssb/GksssbService.java"},{"$f":"Sheet2!G50","v":"37 "},{"$f":"RIGHT(Sheet2!A50,Sheet2!E50-Sheet2!D50)","v":"Dead store to e in com.jtgh.yjpt.client.jyr.gksssb.GksssbService.<static initializer for GksssbService>() [Of Concern(15), High confidence]"}]
[{"$f":"LEFT(Sheet2!A51,Sheet2!C51+3)","v":"yjpt/java_src/com/jtgh/yjpt/controller/bagl/jdhxpandzdwxyba/ZdwxybaController.java"},{"$f":"Sheet2!G51","v":"68 "},{"$f":"RIGHT(Sheet2!A51,Sheet2!E51-Sheet2!D51)","v":"Nullcheck of szdid at line 68 of value previously dereferenced in com.jtgh.yjpt.controller.bagl.jdhxpandzdwxyba.ZdwxybaController.list(Pageable, Long, Long, Long, Long) [Troubling(11), Normal confidence]"}]
[{"$f":"LEFT(Sheet2!A52,Sheet2!C52+3)","v":"yjpt/java_src/com/jtgh/yjpt/controller/bagl/jdhxpandzdwxyba/ZdwxybaController.java"},{"$f":"Sheet2!G52","v":"64 "},{"$f":"RIGHT(Sheet2!A52,Sheet2!E52-Sheet2!D52)","v":"Nullcheck of sqdwid at line 64 of value previously dereferenced in com.jtgh.yjpt.controller.bagl.jdhxpandzdwxyba.ZdwxybaController.list(Pageable, Long, Long, Long, Long) [Troubling(11), Normal confidence]"}]
[{"$f":"LEFT(Sheet2!A53,Sheet2!C53+3)","v":"yjpt/java_src/com/jtgh/yjpt/controller/jsxmqasc/GkjsxmaqscController.java"},{"$f":"Sheet2!G53","v":"265 "},{"$f":"RIGHT(Sheet2!A53,Sheet2!E53-Sheet2!D53)","v":"Possible null pointer dereference of dataset in com.jtgh.yjpt.controller.jsxmqasc.GkjsxmaqscController.print(List) on exception path [Troubling(11), Normal confidence]"}]
[{"$f":"LEFT(Sheet2!A54,Sheet2!C54+3)","v":"yjpt/java_src/com/jtgh/yjpt/controller/jsxmqasc/GkjsxmaqscController.java"},{"$f":"Sheet2!G54","v":"279 "},{"$f":"RIGHT(Sheet2!A54,Sheet2!E54-Sheet2!D54)","v":"Possible null pointer dereference of taskList in com.jtgh.yjpt.controller.jsxmqasc.GkjsxmaqscController.print(List) [Scary(8), Normal confidence]"}]
[{"$f":"LEFT(Sheet2!A55,Sheet2!C55+3)","v":"yjpt/java_src/com/jtgh/yjpt/client/bagl/sgyhpxzg/ZdsgdyhpchzlqkbaService.java"},{"$f":"Sheet2!G55","v":"39 "},{"$f":"RIGHT(Sheet2!A55,Sheet2!E55-Sheet2!D55)","v":"Dead store to e in com.jtgh.yjpt.client.bagl.sgyhpxzg.ZdsgdyhpchzlqkbaService.<static initializer for ZdsgdyhpchzlqkbaService>() [Of Concern(15), High confidence]"}]
[{"$f":"LEFT(Sheet2!A56,Sheet2!C56+3)","v":"yjpt/java_src/com/jtgh/yjpt/controller/jsxmqasc/GkjsxmaqscController.java"},{"$f":"Sheet2!G56","v":"314 "},{"$f":"RIGHT(Sheet2!A56,Sheet2!E56-Sheet2!D56)","v":"Suspicious comparison of Long references in com.jtgh.yjpt.controller.jsxmqasc.GkjsxmaqscController.print(List) [Scariest(1), High confidence]"}]
[{"$f":"LEFT(Sheet2!A57,Sheet2!C57+3)","v":"yjpt/java_src/com/jtgh/yjpt/controller/jsxmqasc/GkjsxmaqscController.java"},{"$f":"Sheet2!G57","v":"313 "},{"$f":"RIGHT(Sheet2!A57,Sheet2!E57-Sheet2!D57)","v":"Suspicious comparison of Long references in com.jtgh.yjpt.controller.jsxmqasc.GkjsxmaqscController.print(List) [Scariest(1), High confidence]"}]
[{"$f":"LEFT(Sheet2!A58,Sheet2!C58+3)","v":"yjpt/java_src/com/jtgh/yjpt/controller/jsxmqasc/GkjsxmaqscController.java"},{"$f":"Sheet2!G58","v":"265 "},{"$f":"RIGHT(Sheet2!A58,Sheet2!E58-Sheet2!D58)","v":"Possible null pointer dereference of dataset in com.jtgh.yjpt.controller.jsxmqasc.GkjsxmaqscController.print(List) [Scary(8), Normal confidence]"}]
[{"$f":"LEFT(Sheet2!A59,Sheet2!C59+3)","v":"yjpt/java_src/com/jtgh/yjpt/service/impl/zyfzndjy/GkwxhwzyfzblhhzServiceImpl.java"},{"$f":"Sheet2!G59","v":"332 "},{"$f":"RIGHT(Sheet2!A59,Sheet2!E59-Sheet2!D59)","v":"Dead store to entity in com.jtgh.yjpt.service.impl.zyfzndjy.GkwxhwzyfzblhhzServiceImpl.changeAudit(String, Date, GkwxhwzyfzblhhzEntity, boolean) [Of Concern(15), High confidence]"}]
[{"$f":"LEFT(Sheet2!A60,Sheet2!C60+3)","v":"yjpt/java_src/com/jtgh/yjpt/webService/yjzyxxgl/yjzjk/YjzjkWebService.java"},{"$f":"Sheet2!G60","v":"55 "},{"$f":"RIGHT(Sheet2!A60,Sheet2!E60-Sheet2!D60)","v":"Dead store to entity in com.jtgh.yjpt.webService.yjzyxxgl.yjzjk.YjzjkWebService.saveEntityAndAcc(YjzjkEntity, AccessoryEntity) [Of Concern(15), High confidence]"}]
[{"$f":"LEFT(Sheet2!A61,Sheet2!C61+3)","v":"yjpt/java_src/com/jtgh/yjpt/controller/bagl/yjyaba/YjyabaController.java"},{"$f":"Sheet2!G61","v":"251 "},{"$f":"RIGHT(Sheet2!A61,Sheet2!E61-Sheet2!D61)","v":"Nullcheck of szdid at line 251 of value previously dereferenced in com.jtgh.yjpt.controller.bagl.yjyaba.YjyabaController.listNoFlow(Pageable, Long, String, Long, Date, Date, Long, Long, String) [Troubling(11), Normal confidence]"}]
[{"$f":"LEFT(Sheet2!A62,Sheet2!C62+3)","v":"yjpt/java_src/com/jtgh/yjpt/controller/bagl/yjyaba/YjyabaController.java"},{"$f":"Sheet2!G62","v":"232 "},{"$f":"RIGHT(Sheet2!A62,Sheet2!E62-Sheet2!D62)","v":"Nullcheck of jjtype at line 232 of value previously dereferenced in com.jtgh.yjpt.controller.bagl.yjyaba.YjyabaController.listNoFlow(Pageable, Long, String, Long, Date, Date, Long, Long, String) [Troubling(11), Normal confidence]"}]
[{"$f":"LEFT(Sheet2!A63,Sheet2!C63+3)","v":"yjpt/java_src/com/jtgh/yjpt/controller/bagl/yjyaba/YjyabaController.java"},{"$f":"Sheet2!G63","v":"256 "},{"$f":"RIGHT(Sheet2!A63,Sheet2!E63-Sheet2!D63)","v":"Nullcheck of gqid at line 256 of value previously dereferenced in com.jtgh.yjpt.controller.bagl.yjyaba.YjyabaController.listNoFlow(Pageable, Long, String, Long, Date, Date, Long, Long, String) [Troubling(11), Normal confidence]"}]
[{"$f":"LEFT(Sheet2!A64,Sheet2!C64+3)","v":"yjpt/java_src/com/jtgh/yjpt/controller/bagl/yjyaba/YjyabaController.java"},{"$f":"Sheet2!G64","v":"351 "},{"$f":"RIGHT(Sheet2!A64,Sheet2!E64-Sheet2!D64)","v":"Possible null pointer dereference of dataset in com.jtgh.yjpt.controller.bagl.yjyaba.YjyabaController.print(List) on exception path [Troubling(11), Normal confidence]"}]
[{"$f":"LEFT(Sheet2!A65,Sheet2!C65+3)","v":"yjpt/java_src/com/jtgh/yjpt/controller/ExportExcel.java"},{"$f":"Sheet2!G65","v":"114 "},{"$f":"RIGHT(Sheet2!A65,Sheet2!E65-Sheet2!D65)","v":"Null passed for nonnull parameter of exportExcel(String, String[], Collection, OutputStream) in com.jtgh.yjpt.controller.ExportExcel.download(String, String[], String, String, String[], HttpServletResponse, HttpServletRequest) [Scary(8), Normal confidence]"}]
[{"$f":"LEFT(Sheet2!A66,Sheet2!C66+3)","v":"yjpt/java_src/com/jtgh/yjpt/client/yjzyxxgl/yjwz/yjwz/YjwzService.java"},{"$f":"Sheet2!G66","v":"38 "},{"$f":"RIGHT(Sheet2!A66,Sheet2!E66-Sheet2!D66)","v":"Dead store to e in com.jtgh.yjpt.client.yjzyxxgl.yjwz.yjwz.YjwzService.<static initializer for YjwzService>() [Of Concern(15), High confidence]"}]
[{"$f":"LEFT(Sheet2!A67,Sheet2!C67+3)","v":"yjpt/java_src/com/jtgh/yjpt/client/yjzyxxgl/zyyjdw/jzryhz/YjdwJzryService.java"},{"$f":"Sheet2!G67","v":"39 "},{"$f":"RIGHT(Sheet2!A67,Sheet2!E67-Sheet2!D67)","v":"Dead store to e in com.jtgh.yjpt.client.yjzyxxgl.zyyjdw.jzryhz.YjdwJzryService.<static initializer for YjdwJzryService>() [Of Concern(15), High confidence]"}]
[{"$f":"LEFT(Sheet2!A68,Sheet2!C68+3)","v":"yjpt/java_src/com/jtgh/yjpt/client/yjgl/yjpx/YjpxService.java"},{"$f":"Sheet2!G68","v":"36 "},{"$f":"RIGHT(Sheet2!A68,Sheet2!E68-Sheet2!D68)","v":"Dead store to e in com.jtgh.yjpt.client.yjgl.yjpx.YjpxService.<static initializer for YjpxService>() [Of Concern(15), High confidence]"}]
[{"$f":"LEFT(Sheet2!A69,Sheet2!C69+3)","v":"yjpt/java_src/com/jtgh/yjpt/controller/check/DcController.java"},{"$f":"Sheet2!G69","v":"413 "},{"$f":"RIGHT(Sheet2!A69,Sheet2!E69-Sheet2!D69)","v":"int value cast to float and then passed to Math.round in com.jtgh.yjpt.controller.check.DcController.getzgl(String, String) [Scary(9), Normal confidence]"}]
[{"$f":"LEFT(Sheet2!A70,Sheet2!C70+3)","v":"yjpt/java_src/com/jtgh/yjpt/controller/zyfzhz/GkwxhwzyfzhzController.java"},{"$f":"Sheet2!G70","v":"419 "},{"$f":"RIGHT(Sheet2!A70,Sheet2!E70-Sheet2!D70)","v":"Possible null pointer dereference of result in com.jtgh.yjpt.controller.zyfzhz.GkwxhwzyfzhzController.doViewInit(Long, Long) [Scary(8), Normal confidence]"}]
[{"$f":"LEFT(Sheet2!A71,Sheet2!C71+3)","v":"yjpt/java_src/com/jtgh/yjpt/controller/sgalgl/SgalglController.java"},{"$f":"Sheet2!G71","v":"446 "},{"$f":"RIGHT(Sheet2!A71,Sheet2!E71-Sheet2!D71)","v":"Possible null pointer dereference of doc in com.jtgh.yjpt.controller.sgalgl.SgalglController.getWsgFile(String, String, Date, Date, Date, HttpServletResponse, HttpServletRequest) on exception path [Troubling(11), Normal confidence]"}]
[{"$f":"LEFT(Sheet2!A72,Sheet2!C72+3)","v":"yjpt/java_src/com/jtgh/yjpt/controller/bagl/jdhxpandzdwxyba/JdhxpbaController.java"},{"$f":"Sheet2!G72","v":"62 "},{"$f":"RIGHT(Sheet2!A72,Sheet2!E72-Sheet2!D72)","v":"Nullcheck of szdid at line 62 of value previously dereferenced in com.jtgh.yjpt.controller.bagl.jdhxpandzdwxyba.JdhxpbaController.list(Pageable, Long, Long, Long, Long, Long) [Troubling(11), Normal confidence]"}]
[{"$f":"LEFT(Sheet2!A73,Sheet2!C73+3)","v":"yjpt/java_src/com/jtgh/yjpt/controller/zyfzhz/GkwxhwzyfzhzController.java"},{"$f":"Sheet2!G73","v":"216 "},{"$f":"RIGHT(Sheet2!A73,Sheet2!E73-Sheet2!D73)","v":"Possible null pointer dereference of dataset in com.jtgh.yjpt.controller.zyfzhz.GkwxhwzyfzhzController.print(List) on exception path [Troubling(11), Normal confidence]"}]
[{"$f":"LEFT(Sheet2!A74,Sheet2!C74+3)","v":"yjpt/java_src/com/jtgh/yjpt/client/jyr/dc/JyrdcService.java"},{"$f":"Sheet2!G74","v":"37 "},{"$f":"RIGHT(Sheet2!A74,Sheet2!E74-Sheet2!D74)","v":"Dead store to e in com.jtgh.yjpt.client.jyr.dc.JyrdcService.<static initializer for JyrdcService>() [Of Concern(15), High confidence]"}]
[{"$f":"LEFT(Sheet2!A75,Sheet2!C75+3)","v":"yjpt/java_src/com/jtgh/yjpt/service/impl/zysqbp/ZysqbpServiceImpl.java"},{"$f":"Sheet2!G75","v":"817 "},{"$f":"RIGHT(Sheet2!A75,Sheet2!E75-Sheet2!D75)","v":"int value cast to float and then passed to Math.round in com.jtgh.yjpt.service.impl.zysqbp.ZysqbpServiceImpl.getbl(String, String) [Scary(9), Normal confidence]"}]
[{"$f":"LEFT(Sheet2!A76,Sheet2!C76+3)","v":"yjpt/java_src/com/jtgh/yjpt/service/impl/jsxmaqsc/GkjsxmaqscServiceImpl.java"},{"$f":"Sheet2!G76","v":"226 "},{"$f":"RIGHT(Sheet2!A76,Sheet2!E76-Sheet2!D76)","v":"Potentially dangerous use of non-short-circuit logic in com.jtgh.yjpt.service.impl.jsxmaqsc.GkjsxmaqscServiceImpl.doTransfer(GkjsxmaqscEntity, List, String) [Of Concern(15), High confidence]"}]
[{"$f":"LEFT(Sheet2!A77,Sheet2!C77+3)","v":"yjpt/java_src/com/jtgh/yjpt/controller/bagl/jdhxpandzdwxyba/JdhxpbaController.java"},{"$f":"Sheet2!G77","v":"53 "},{"$f":"RIGHT(Sheet2!A77,Sheet2!E77-Sheet2!D77)","v":"Nullcheck of sqdwid at line 53 of value previously dereferenced in com.jtgh.yjpt.controller.bagl.jdhxpandzdwxyba.JdhxpbaController.list(Pageable, Long, Long, Long, Long, Long) [Troubling(11), Normal confidence]"}]
[{"$f":"LEFT(Sheet2!A78,Sheet2!C78+3)","v":"yjpt/java_src/com/jtgh/yjpt/controller/bagl/jdhxpandzdwxyba/JdhxpZdwxyBadjController.java"},{"$f":"Sheet2!G78","v":"212 "},{"$f":"RIGHT(Sheet2!A78,Sheet2!E78-Sheet2!D78)","v":"Possible null pointer dereference of dataset in com.jtgh.yjpt.controller.bagl.jdhxpandzdwxyba.JdhxpZdwxyBadjController.print(List) on exception path [Troubling(11), Normal confidence]"}]
[{"$f":"LEFT(Sheet2!A79,Sheet2!C79+3)","v":"yjpt/java_src/com/jtgh/yjpt/service/impl/jsxmaqsc/GkjsxmaqscServiceImpl.java"},{"$f":"Sheet2!G79","v":"442 "},{"$f":"RIGHT(Sheet2!A79,Sheet2!E79-Sheet2!D79)","v":"Nullcheck of tasks at line 442 of value previously dereferenced in com.jtgh.yjpt.service.impl.jsxmaqsc.GkjsxmaqscServiceImpl.complete(WorkFlowParam, Map) [Troubling(11), Normal confidence]"}]
[{"$f":"LEFT(Sheet2!A80,Sheet2!C80+3)","v":"yjpt/java_src/com/jtgh/yjpt/controller/bagl/jdhxpandzdwxyba/JdhxpbaController.java"},{"$f":"Sheet2!G80","v":"67 "},{"$f":"RIGHT(Sheet2!A80,Sheet2!E80-Sheet2!D80)","v":"Nullcheck of gqid at line 67 of value previously dereferenced in com.jtgh.yjpt.controller.bagl.jdhxpandzdwxyba.JdhxpbaController.list(Pageable, Long, Long, Long, Long, Long) [Troubling(11), Normal confidence]"}]
[{"$f":"LEFT(Sheet2!A81,Sheet2!C81+3)","v":"yjpt/java_src/com/jtgh/yjpt/service/impl/yjzyxxgl/ZyyjjydwServiceImpl.java"},{"$f":"Sheet2!G81","v":"101 "},{"$f":"RIGHT(Sheet2!A81,Sheet2!E81-Sheet2!D81)","v":"Dead store to entity in com.jtgh.yjpt.service.impl.yjzyxxgl.ZyyjjydwServiceImpl.tbsj(ZyyjjydwEntity, List, List, List, List) [Of Concern(15), High confidence]"}]
[{"$f":"LEFT(Sheet2!A82,Sheet2!C82+3)","v":"yjpt/java_src/com/jtgh/yjpt/controller/bagl/jdhxpandzdwxyba/JdhxpbaController.java"},{"$f":"Sheet2!G82","v":"57 "},{"$f":"RIGHT(Sheet2!A82,Sheet2!E82-Sheet2!D82)","v":"Nullcheck of ccdwid at line 57 of value previously dereferenced in com.jtgh.yjpt.controller.bagl.jdhxpandzdwxyba.JdhxpbaController.list(Pageable, Long, Long, Long, Long, Long) [Troubling(11), Normal confidence]"}]
[{"$f":"LEFT(Sheet2!A83,Sheet2!C83+3)","v":"yjpt/java_src/com/jtgh/yjpt/controller/bagl/yjyaba/YjyabaController.java"},{"$f":"Sheet2!G83","v":"162 "},{"$f":"RIGHT(Sheet2!A83,Sheet2!E83-Sheet2!D83)","v":"Nullcheck of YjyabaController$1.val$gqid at line 162 of value previously dereferenced in com.jtgh.yjpt.controller.bagl.yjyaba.YjyabaController$1.toPredicate(Root, CriteriaQuery, CriteriaBuilder) [Troubling(11), Normal confidence]"}]
[{"$f":"LEFT(Sheet2!A84,Sheet2!C84+3)","v":"yjpt/java_src/com/jtgh/yjpt/controller/qlyg/AlertController.java"},{"$f":"Sheet2!G84","v":"62 "},{"$f":"RIGHT(Sheet2!A84,Sheet2!E84-Sheet2!D84)","v":"Null passed for nonnull parameter of com.jtgh.yjpt.controller.BaseController.createBusinessContext(Page) in com.jtgh.yjpt.controller.qlyg.AlertController.list(SinglePageRequest, Long, AlertEntity) [Scary(8), Normal confidence]"}]
[{"$f":"LEFT(Sheet2!A85,Sheet2!C85+3)","v":"yjpt/java_src/com/jtgh/yjpt/client/yjzyxxgl/yjwz/flxx/YjwzFlxxService.java"},{"$f":"Sheet2!G85","v":"39 "},{"$f":"RIGHT(Sheet2!A85,Sheet2!E85-Sheet2!D85)","v":"Dead store to e in com.jtgh.yjpt.client.yjzyxxgl.yjwz.flxx.YjwzFlxxService.<static initializer for YjwzFlxxService>() [Of Concern(15), High confidence]"}]
[{"$f":"LEFT(Sheet2!A86,Sheet2!C86+3)","v":"yjpt/java_src/com/jtgh/yjpt/controller/aqsszxyssc/AqsszxysController.java"},{"$f":"Sheet2!G86","v":"267 "},{"$f":"RIGHT(Sheet2!A86,Sheet2!E86-Sheet2!D86)","v":"Possible null pointer dereference of dataset in com.jtgh.yjpt.controller.aqsszxyssc.AqsszxysController.print(List) [Scary(8), Normal confidence]"}]
[{"$f":"LEFT(Sheet2!A87,Sheet2!C87+3)","v":"yjpt/java_src/com/jtgh/yjpt/controller/aqsszxyssc/AqsszxysController.java"},{"$f":"Sheet2!G87","v":"281 "},{"$f":"RIGHT(Sheet2!A87,Sheet2!E87-Sheet2!D87)","v":"Possible null pointer dereference of taskList in com.jtgh.yjpt.controller.aqsszxyssc.AqsszxysController.print(List) [Scary(8), Normal confidence]"}]
[{"$f":"LEFT(Sheet2!A88,Sheet2!C88+3)","v":"yjpt/java_src/com/jtgh/yjpt/common/ApplicationContextHelper.java"},{"$f":"Sheet2!G88","v":"27 "},{"$f":"RIGHT(Sheet2!A88,Sheet2!E88-Sheet2!D88)","v":"Write to static field com.jtgh.yjpt.common.ApplicationContextHelper.appCtx from instance method com.jtgh.yjpt.common.ApplicationContextHelper.setApplicationContext(ApplicationContext) [Of Concern(15), High confidence]"}]
[{"$f":"LEFT(Sheet2!A89,Sheet2!C89+3)","v":"yjpt/java_src/com/jtgh/yjpt/controller/aqsszxyssc/AqsszxysController.java"},{"$f":"Sheet2!G89","v":"317 "},{"$f":"RIGHT(Sheet2!A89,Sheet2!E89-Sheet2!D89)","v":"Suspicious comparison of Long references in com.jtgh.yjpt.controller.aqsszxyssc.AqsszxysController.print(List) [Scariest(1), High confidence]"}]
[{"$f":"LEFT(Sheet2!A90,Sheet2!C90+3)","v":"yjpt/java_src/com/jtgh/yjpt/controller/yjzyxxgl/YjjynljbqkController.java"},{"$f":"Sheet2!G90","v":"161 "},{"$f":"RIGHT(Sheet2!A90,Sheet2!E90-Sheet2!D90)","v":"Dead store to yjjynljbqk in com.jtgh.yjpt.controller.yjzyxxgl.YjjynljbqkController.insertYjjynljbqk(YjjynljbqkEntity, long) [Of Concern(15), High confidence]"}]
[{"$f":"LEFT(Sheet2!A91,Sheet2!C91+3)","v":"yjpt/java_src/com/jtgh/yjpt/controller/aqsszxyssc/AqsszxysController.java"},{"$f":"Sheet2!G91","v":"103 "},{"$f":"RIGHT(Sheet2!A91,Sheet2!E91-Sheet2!D91)","v":"Call to String.equals(com.jtgh.yjpt.entity.jyr.JyrEntity) in com.jtgh.yjpt.controller.aqsszxyssc.AqsszxysController$1.toPredicate(Root, CriteriaQuery, CriteriaBuilder) [Scariest(1), High confidence]"}]
[{"$f":"LEFT(Sheet2!A92,Sheet2!C92+3)","v":"yjpt/java_src/com/jtgh/yjpt/client/bagl/jdwxpjwxyba/JdwxphzdwxybaService.java"},{"$f":"Sheet2!G92","v":"39 "},{"$f":"RIGHT(Sheet2!A92,Sheet2!E92-Sheet2!D92)","v":"Dead store to e in com.jtgh.yjpt.client.bagl.jdwxpjwxyba.JdwxphzdwxybaService.<static initializer for JdwxphzdwxybaService>() [Of Concern(15), High confidence]"}]
[{"$f":"LEFT(Sheet2!A93,Sheet2!C93+3)","v":"yjpt/java_src/com/jtgh/yjpt/service/impl/zyfzndjy/GkwxhwzyfzblhhzServiceImpl.java"},{"$f":"Sheet2!G93","v":"405 "},{"$f":"RIGHT(Sheet2!A93,Sheet2!E93-Sheet2!D93)","v":"Possible null pointer dereference of doc in com.jtgh.yjpt.service.impl.zyfzndjy.GkwxhwzyfzblhhzServiceImpl.createBackTemplate(Long, String, String, UserEntity, String) on exception path [Troubling(11), Normal confidence]"}]
[{"$f":"LEFT(Sheet2!A94,Sheet2!C94+3)","v":"yjpt/java_src/com/jtgh/yjpt/controller/aqsszxyssc/AqsszxysController.java"},{"$f":"Sheet2!G94","v":"267 "},{"$f":"RIGHT(Sheet2!A94,Sheet2!E94-Sheet2!D94)","v":"Possible null pointer dereference of dataset in com.jtgh.yjpt.controller.aqsszxyssc.AqsszxysController.print(List) on exception path [Troubling(11), Normal confidence]"}]
[{"$f":"LEFT(Sheet2!A95,Sheet2!C95+3)","v":"yjpt/java_src/com/jtgh/yjpt/service/impl/zyfzndjy/GkwxhwzyfzblhhzServiceImpl.java"},{"$f":"Sheet2!G95","v":"357 "},{"$f":"RIGHT(Sheet2!A95,Sheet2!E95-Sheet2!D95)","v":"Possible null pointer dereference of doc in com.jtgh.yjpt.service.impl.zyfzndjy.GkwxhwzyfzblhhzServiceImpl.createPassTemplate(Long, String, String, UserEntity, String, Date) on exception path [Troubling(11), Normal confidence]"}]
[{"$f":"LEFT(Sheet2!A96,Sheet2!C96+3)","v":"yjpt/java_src/com/jtgh/yjpt/controller/aqsszxyssc/AqsszxysController.java"},{"$f":"Sheet2!G96","v":"316 "},{"$f":"RIGHT(Sheet2!A96,Sheet2!E96-Sheet2!D96)","v":"Suspicious comparison of Long references in com.jtgh.yjpt.controller.aqsszxyssc.AqsszxysController.print(List) [Scariest(1), High confidence]"}]
[{"$f":"LEFT(Sheet2!A97,Sheet2!C97+3)","v":"yjpt/java_src/com/jtgh/yjpt/client/bagl/aqpjbgjzgfals/AqpjbgjzgfalsbaService.java"},{"$f":"Sheet2!G97","v":"39 "},{"$f":"RIGHT(Sheet2!A97,Sheet2!E97-Sheet2!D97)","v":"Dead store to e in com.jtgh.yjpt.client.bagl.aqpjbgjzgfals.AqpjbgjzgfalsbaService.<static initializer for AqpjbgjzgfalsbaService>() [Of Concern(15), High confidence]"}]
[{"$f":"LEFT(Sheet2!A98,Sheet2!C98+3)","v":"yjpt/java_src/com/jtgh/yjpt/controller/common/WorkFlowController.java"},{"$f":"Sheet2!G98","v":"89 "},{"$f":"RIGHT(Sheet2!A98,Sheet2!E98-Sheet2!D98)","v":"Dead store to begin in com.jtgh.yjpt.controller.common.WorkFlowController.todoList(String, Date, Date) [Of Concern(15), High confidence]"}]
[{"$f":"LEFT(Sheet2!A99,Sheet2!C99+3)","v":"yjpt/java_src/com/jtgh/yjpt/controller/common/WorkFlowController.java"},{"$f":"Sheet2!G99","v":"90 "},{"$f":"RIGHT(Sheet2!A99,Sheet2!E99-Sheet2!D99)","v":"Dead store to end in com.jtgh.yjpt.controller.common.WorkFlowController.todoList(String, Date, Date) [Of Concern(15), High confidence]"}]
[{"$f":"LEFT(Sheet2!A100,Sheet2!C100+3)","v":"yjpt/java_src/com/jtgh/yjpt/entity/gkgq/GqEntity.java"},{"$f":"Sheet2!G100","v":"78 "},{"$f":"RIGHT(Sheet2!A100,Sheet2!E100-Sheet2!D100)","v":"com.jtgh.yjpt.entity.gkgq.GqEntity defines clone() but doesn't implement Cloneable [Troubling(14), High confidence]"}]
[{"$f":"LEFT(Sheet2!A101,Sheet2!C101+3)","v":"yjpt/java_src/com/jtgh/yjpt/client/jyr/mt/MtService.java"},{"$f":"Sheet2!G101","v":"37 "},{"$f":"RIGHT(Sheet2!A101,Sheet2!E101-Sheet2!D101)","v":"Dead store to e in com.jtgh.yjpt.client.jyr.mt.MtService.<static initializer for MtService>() [Of Concern(15), High confidence]"}]
[{"$f":"LEFT(Sheet2!A102,Sheet2!C102+3)","v":"yjpt/java_src/com/jtgh/yjpt/controller/common/AccessoryController.java"},{"$f":"Sheet2!G102","v":"274 "},{"$f":"RIGHT(Sheet2!A102,Sheet2!E102-Sheet2!D102)","v":"Nullcheck of entityId at line 286 of value previously dereferenced in com.jtgh.yjpt.controller.common.AccessoryController.synUpload(Long, Long, Long, MultipartFile) [Troubling(11), Normal confidence]"}]
[{"$f":"LEFT(Sheet2!A103,Sheet2!C103+3)","v":"yjpt/java_src/com/jtgh/yjpt/client/bagl/aqpjjgba/AqpjjgbaService.java"},{"$f":"Sheet2!G103","v":"39 "},{"$f":"RIGHT(Sheet2!A103,Sheet2!E103-Sheet2!D103)","v":"Dead store to e in com.jtgh.yjpt.client.bagl.aqpjjgba.AqpjjgbaService.<static initializer for AqpjjgbaService>() [Of Concern(15), High confidence]"}]
[{"$f":"LEFT(Sheet2!A104,Sheet2!C104+3)","v":"yjpt/java_src/com/jtgh/yjpt/controller/bagl/aqpjjgba/AqpjjgbaController.java"},{"$f":"Sheet2!G104","v":"271 "},{"$f":"RIGHT(Sheet2!A104,Sheet2!E104-Sheet2!D104)","v":"Possible null pointer dereference of dataset in com.jtgh.yjpt.controller.bagl.aqpjjgba.AqpjjgbaController.print(List) on exception path [Troubling(11), Normal confidence]"}]
[{"$f":"LEFT(Sheet2!A105,Sheet2!C105+3)","v":"yjpt/java_src/com/jtgh/yjpt/client/jyr/ck/CkService.java"},{"$f":"Sheet2!G105","v":"37 "},{"$f":"RIGHT(Sheet2!A105,Sheet2!E105-Sheet2!D105)","v":"Dead store to e in com.jtgh.yjpt.client.jyr.ck.CkService.<static initializer for CkService>() [Of Concern(15), High confidence]"}]
[{"$f":"LEFT(Sheet2!A106,Sheet2!C106+3)","v":"yjpt/java_src/com/jtgh/yjpt/controller/bagl/zdsgdyhpchzlqkba/ZdsgdyhpchzlqkbaController.java"},{"$f":"Sheet2!G106","v":"253 "},{"$f":"RIGHT(Sheet2!A106,Sheet2!E106-Sheet2!D106)","v":"Possible null pointer dereference of dataset in com.jtgh.yjpt.controller.bagl.zdsgdyhpchzlqkba.ZdsgdyhpchzlqkbaController.print(List) on exception path [Troubling(11), Normal confidence]"}]
[{"$f":"LEFT(Sheet2!A107,Sheet2!C107+3)","v":"yjpt/java_src/com/jtgh/yjpt/entity/map/GkxxEntity.java"},{"$f":"Sheet2!G107","v":"112 "},{"$f":"RIGHT(Sheet2!A107,Sheet2!E107-Sheet2!D107)","v":"com.jtgh.yjpt.entity.map.GkxxEntity defines clone() but doesn't implement Cloneable [Troubling(14), High confidence]"}]
[{"$f":"LEFT(Sheet2!A108,Sheet2!C108+3)","v":"yjpt/java_src/com/jtgh/yjpt/client/jyr/bw/BwService.java"},{"$f":"Sheet2!G108","v":"37 "},{"$f":"RIGHT(Sheet2!A108,Sheet2!E108-Sheet2!D108)","v":"Dead store to e in com.jtgh.yjpt.client.jyr.bw.BwService.<static initializer for BwService>() [Of Concern(15), High confidence]"}]
[{"$f":"LEFT(Sheet2!A109,Sheet2!C109+3)","v":"yjpt/java_src/com/jtgh/yjpt/controller/bagl/zdsgdyhpchzlqkba/ZdsgdyhpchzlqkbaController.java"},{"$f":"Sheet2!G109","v":"106 "},{"$f":"RIGHT(Sheet2!A109,Sheet2!E109-Sheet2!D109)","v":"Call to String.equals(com.jtgh.yjpt.entity.jyr.JyrEntity) in com.jtgh.yjpt.controller.bagl.zdsgdyhpchzlqkba.ZdsgdyhpchzlqkbaController$1.toPredicate(Root, CriteriaQuery, CriteriaBuilder) [Scariest(1), High confidence]"}]
[{"$f":"LEFT(Sheet2!A110,Sheet2!C110+3)","v":"yjpt/java_src/com/jtgh/yjpt/controller/check/ZcController.java"},{"$f":"Sheet2!G110","v":"584 "},{"$f":"RIGHT(Sheet2!A110,Sheet2!E110-Sheet2!D110)","v":"int value cast to float and then passed to Math.round in com.jtgh.yjpt.controller.check.ZcController.getzgl(String, String) [Scary(9), Normal confidence]"}]
[{"$f":"LEFT(Sheet2!A111,Sheet2!C111+3)","v":"yjpt/java_src/com/jtgh/yjpt/entity/aqpjjgxx/AqpjjgxxEntity.java"},{"$f":"Sheet2!G111","v":"147 "},{"$f":"RIGHT(Sheet2!A111,Sheet2!E111-Sheet2!D111)","v":"com.jtgh.yjpt.entity.aqpjjgxx.AqpjjgxxEntity defines clone() but doesn't implement Cloneable [Troubling(14), High confidence]"}]
[{"$f":"LEFT(Sheet2!A112,Sheet2!C112+3)","v":"yjpt/java_src/com/jtgh/yjpt/client/common/gkxx/GkgkxxService.java"},{"$f":"Sheet2!G112","v":"41 "},{"$f":"RIGHT(Sheet2!A112,Sheet2!E112-Sheet2!D112)","v":"Dead store to e in com.jtgh.yjpt.client.common.gkxx.GkgkxxService.<static initializer for GkgkxxService>() [Of Concern(15), High confidence]"}]
[{"$f":"LEFT(Sheet2!A113,Sheet2!C113+3)","v":"yjpt/java_src/com/jtgh/yjpt/controller/check/ZcController.java"},{"$f":"Sheet2!G113","v":"596 "},{"$f":"RIGHT(Sheet2!A113,Sheet2!E113-Sheet2!D113)","v":"int value cast to float and then passed to Math.round in com.jtgh.yjpt.controller.check.ZcController.main(String[]) [Scary(9), Normal confidence]"}]
[{"$f":"LEFT(Sheet2!A114,Sheet2!C114+3)","v":"yjpt/java_src/com/jtgh/yjpt/controller/check/ZcController.java"},{"$f":"Sheet2!G114","v":"458 "},{"$f":"RIGHT(Sheet2!A114,Sheet2!E114-Sheet2!D114)","v":"Possible null pointer dereference of doc in com.jtgh.yjpt.controller.check.ZcController.warn(ZcEntity) on exception path [Troubling(11), Normal confidence]"}]
[{"$f":"LEFT(Sheet2!A115,Sheet2!C115+3)","v":"yjpt/java_src/com/jtgh/yjpt/service/impl/jyr/JyrServiceImpl.java"},{"$f":"Sheet2!G115","v":"553 "},{"$f":"RIGHT(Sheet2!A115,Sheet2!E115-Sheet2!D115)","v":"Dead store to bw_add_list in com.jtgh.yjpt.service.impl.jyr.JyrServiceImpl.save(JyrEntity, List, List, List, List, List, List, String) [Of Concern(15), High confidence]"}]
[{"$f":"LEFT(Sheet2!A116,Sheet2!C116+3)","v":"yjpt/java_src/com/jtgh/yjpt/service/impl/jyr/JyrServiceImpl.java"},{"$f":"Sheet2!G116","v":"574 "},{"$f":"RIGHT(Sheet2!A116,Sheet2!E116-Sheet2!D116)","v":"Dead store to ckList in com.jtgh.yjpt.service.impl.jyr.JyrServiceImpl.save(JyrEntity, List, List, List, List, List, List, String) [Of Concern(15), High confidence]"}]
[{"$f":"LEFT(Sheet2!A117,Sheet2!C117+3)","v":"yjpt/java_src/com/jtgh/yjpt/service/impl/check/ZcServiceImpl.java"},{"$f":"Sheet2!G117","v":"82 "},{"$f":"RIGHT(Sheet2!A117,Sheet2!E117-Sheet2!D117)","v":"Possible null pointer dereference of res in com.jtgh.yjpt.service.impl.check.ZcServiceImpl.countZdyh(Long, String) [Scary(8), Normal confidence]"}]
[{"$f":"LEFT(Sheet2!A118,Sheet2!C118+3)","v":"yjpt/java_src/com/jtgh/yjpt/client/yjzyxxgl/zyyjdw/zyryhz/YjdwZyryService.java"},{"$f":"Sheet2!G118","v":"39 "},{"$f":"RIGHT(Sheet2!A118,Sheet2!E118-Sheet2!D118)","v":"Dead store to e in com.jtgh.yjpt.client.yjzyxxgl.zyyjdw.zyryhz.YjdwZyryService.<static initializer for YjdwZyryService>() [Of Concern(15), High confidence]"}]

{"sheet":"Sheet2","index":1,"n_rows":118,"n_cols":7,"rows_kept":118,"cut":false,"hidden":false,"merged":[]}
["导出的BUG","截取标识"]
["yjpt/java_src/com/jtgh/yjpt/client/yjgl/yjyl/YjylService.java:36 Dead store to e in com.jtgh.yjpt.client.yjgl.yjyl.YjylService.<static initializer for YjylService>() [Of Concern(15), High confidence]","java:",{"$f":"FIND(B2,A2)","v":58},{"$f":"FIND(\" \",A2)","v":65},{"$f":"LEN(A2)","v":199},{"$f":"FIND(\":\",A2)","v":62},{"$f":"RIGHT(LEFT(A2,D2),D2-F2)","v":"36 "}]
["yjpt/java_src/com/jtgh/yjpt/entity/common/CodeEntity.java:94 com.jtgh.yjpt.entity.common.CodeEntity defines clone() but doesn't implement Cloneable [Troubling(14), High confidence]","java:",{"$f":"FIND(B3,A3)","v":54},{"$f":"FIND(\" \",A3)","v":61},{"$f":"LEN(A3)","v":180},{"$f":"FIND(\":\",A3)","v":58},{"$f":"RIGHT(LEFT(A3,D3),D3-F3)","v":"94 "}]
["yjpt/java_src/com/jtgh/yjpt/webService/common/AuthHandler.java:58 Possible null pointer dereference of it in com.jtgh.yjpt.webService.common.AuthHandler.handleMessage(SOAPMessageContext) [Scary(8), Normal confidence]","java:",59,66,216,63,"58 "]
["yjpt/java_src/com/jtgh/yjpt/webService/common/AuthHandler.java:62 Possible null pointer dereference of value in com.jtgh.yjpt.webService.common.AuthHandler.handleMessage(SOAPMessageContext) [Scary(6), High confidence]","java:",59,66,217,63,"62 "]
["yjpt/java_src/com/jtgh/yjpt/webService/common/AuthHandler.java:54 Possible null pointer dereference of soapHeader in com.jtgh.yjpt.webService.common.AuthHandler.handleMessage(SOAPMessageContext) [Scary(6), High confidence]","java:",59,66,222,63,"54 "]
["yjpt/java_src/com/jtgh/yjpt/controller/zysqbp/ZysqbpController.java:844 Call to Long.equals(Integer) in com.jtgh.yjpt.controller.zysqbp.ZysqbpController.getWxzyqkhzFile(Long, HttpServletResponse, HttpServletRequest) [Scariest(1), High confidence]","java:",64,72,246,68,"844 "]
["yjpt/java_src/com/jtgh/yjpt/client/sys/WxhwpmService.java:39 Dead store to e in com.jtgh.yjpt.client.sys.WxhwpmService.<static initializer for WxhwpmService>() [Of Concern(15), High confidence]","java:",54,61,193,58,"39 "]
["yjpt/java_src/com/jtgh/yjpt/service/impl/check/DcServiceImpl.java:150 Possible null pointer dereference of doc in com.jtgh.yjpt.service.impl.check.DcServiceImpl.setGztx(DcEntity, UserEntity) on exception path [Troubling(11), Normal confidence]","java:",62,70,243,66,"150 "]
["yjpt/java_src/com/jtgh/yjpt/controller/bagl/aqpjbgjzgfalsba/AqpjbgjzgfalsbaController.java:238 Possible null pointer dereference of dataset in com.jtgh.yjpt.controller.bagl.aqpjbgjzgfalsba.AqpjbgjzgfalsbaController.print(List) on exception path [Troubling(11), Normal confidence]","java:",87,95,279,91,"238 "]
["yjpt/java_src/com/jtgh/yjpt/controller/bagl/aqpjbgjzgfalsba/AqpjbgjzgfalsbaController.java:90 Call to String.equals(com.jtgh.yjpt.entity.jyr.JyrEntity) in com.jtgh.yjpt.controller.bagl.aqpjbgjzgfalsba.AqpjbgjzgfalsbaController$1.toPredicate(Root, CriteriaQuery, CriteriaBuilder) [Scariest(1), High confidence]","java:",87,94,309,91,"90 "]
["yjpt/java_src/com/jtgh/yjpt/service/impl/yjzyxxgl/YjwzxxServiceImpl.java:448 Dead store to entity in com.jtgh.yjpt.service.impl.yjzyxxgl.YjwzxxServiceImpl.save(YjwzxxEntity, List, List) [Of Concern(15), High confidence]","java:",69,77,219,73,"448 "]
["yjpt/java_src/com/jtgh/yjpt/client/yjgl/yjyx/YjyxService.java:39 Dead store to e in com.jtgh.yjpt.client.yjgl.yjyx.YjyxService.<static initializer for YjyxService>() [Of Concern(15), High confidence]","java:",58,65,199,62,"39 "]
["yjpt/java_src/com/jtgh/yjpt/webService/jyrjcxx/gksssb/GksssbWebService.java:58 Dead store to entity in com.jtgh.yjpt.webService.jyrjcxx.gksssb.GksssbWebService.saveEntityAndFj(GksssbEntity, AccessoryEntity) [Of Concern(15), High confidence]","java:",72,79,240,76,"58 "]
["yjpt/java_src/com/jtgh/yjpt/service/impl/jyr/JyrServiceImpl.java:564 Dead store to dcxxeditlist in com.jtgh.yjpt.service.impl.jyr.JyrServiceImpl.save(JyrEntity, List, List, List, List, List, List, String) [Of Concern(15), High confidence]","java:",61,69,238,65,"564 "]
["yjpt/java_src/com/jtgh/yjpt/service/impl/jyr/JyrServiceImpl.java:415 Possible null pointer dereference of res in com.jtgh.yjpt.service.impl.jyr.JyrServiceImpl.countJyr(Long) [Scary(8), Normal confidence]","java:",61,69,203,65,"415 "]
["yjpt/java_src/com/jtgh/yjpt/controller/zysqbp/ZysqbpController.java:255 Possible null pointer dereference of dataset in com.jtgh.yjpt.controller.zysqbp.ZysqbpController.print(List) on exception path [Troubling(11), Normal confidence]","java:",64,72,233,68,"255 "]
["yjpt/java_src/com/jtgh/yjpt/controller/zysqbp/ZysqbpController.java:399 Null pointer dereference of list in com.jtgh.yjpt.controller.zysqbp.ZysqbpController.listQy() [Scary(5), High confidence]","java:",64,72,193,68,"399 "]
["yjpt/java_src/com/jtgh/yjpt/controller/qlyg/SuperviseController.java:54 Null passed for nonnull parameter of com.jtgh.yjpt.controller.BaseController.createBusinessContext(Page) in com.jtgh.yjpt.controller.qlyg.SuperviseController.list(SinglePageRequest, Long, SuperviseEntity) [Scary(8), Normal confidence]","java:",65,72,306,69,"54 "]
["yjpt/java_src/com/jtgh/yjpt/service/impl/jyrxxgl/RyjbxxServiceImpl.java:235 Dead store to ryjbxxEntity in com.jtgh.yjpt.service.impl.jyrxxgl.RyjbxxServiceImpl.save(RyjbxxEntity, List, List, String) [Of Concern(15), High confidence]","java:",68,76,231,72,"235 "]
["yjpt/java_src/com/jtgh/yjpt/service/impl/jyrxxgl/RyjbxxServiceImpl.java:239 Dead store to zsList in com.jtgh.yjpt.service.impl.jyrxxgl.RyjbxxServiceImpl.save(RyjbxxEntity, List, List, String) [Of Concern(15), High confidence]","java:",68,76,225,72,"239 "]
["yjpt/java_src/com/jtgh/yjpt/webService/sys/WxhwpmWebService.java:25 Dead store to entity in com.jtgh.yjpt.webService.sys.WxhwpmWebService.save(WxhwpmEntity, String) [Of Concern(15), High confidence]","java:",61,68,198,65,"25 "]
["yjpt/java_src/com/jtgh/yjpt/common/servlet/SystemJavaAdapter.java:55 Nullcheck of session at line 55 of value previously dereferenced in com.jtgh.yjpt.common.servlet.SystemJavaAdapter.invoke(Message) [Troubling(11), Normal confidence]","java:",62,69,234,66,"55 "]
["yjpt/java_src/com/jtgh/yjpt/client/yjzyxxgl/sgalgl/SgalglService.java:37 Dead store to e in com.jtgh.yjpt.client.yjzyxxgl.sgalgl.SgalglService.<static initializer for SgalglService>() [Of Concern(15), High confidence]","java:",66,73,217,70,"37 "]
["yjpt/java_src/com/jtgh/yjpt/controller/aqsssbxx/AqsssbxxxxController.java:70 java.math.BigDecimal is incompatible with expected argument type Long in com.jtgh.yjpt.controller.aqsssbxx.AqsssbxxxxController.setSelected(List, Long) [Scariest(1), High confidence]","java:",70,77,259,74,"70 "]
["yjpt/java_src/com/jtgh/yjpt/controller/aqsssbxx/AqsssbxxxxController.java:95 java.math.BigDecimal is incompatible with expected argument type Long in com.jtgh.yjpt.controller.aqsssbxx.AqsssbxxxxController.setChildrenList(AqsssbxxxxEntity, List) [Scariest(1), High confidence]","java:",70,77,275,74,"95 "]
["yjpt/java_src/com/jtgh/qlyg/dao/common/QlygCustomRepository.java:57 query is null guaranteed to be dereferenced in com.jtgh.qlyg.dao.common.QlygCustomRepository.findAll(Specification, Pageable) on exception path [Troubling(11), Normal confidence]","java:",61,68,246,65,"57 "]
["yjpt/java_src/com/jtgh/yjpt/service/impl/bagl/jdhxpandzdwxyba/GqnwxydjbabServiceImpl.java:330 Possible null pointer dereference of doc in com.jtgh.yjpt.service.impl.bagl.jdhxpandzdwxyba.GqnwxydjbabServiceImpl.createBackTemplate(Long, String, String, String, UserEntity, String) on exception path [Troubling(11), Normal confidence]","java:",86,94,330,90,"330 "]
["yjpt/java_src/com/jtgh/yjpt/controller/zyfzndjy/GkwxhwzyfzblhhzController.java:211 Null passed for nonnull parameter of com.jtgh.yjpt.controller.BaseController.createBusinessContext(Page) in com.jtgh.yjpt.controller.zyfzndjy.GkwxhwzyfzblhhzController.list(Long, Pageable, JyrEntity, CodeEntity, GqEntity, CodeEntity, String, String, String) [Scary(8), Normal confidence]","java:",75,83,370,79,"211 "]
["yjpt/java_src/com/jtgh/yjpt/service/impl/bagl/jdhxpandzdwxyba/GqnwxydjbabServiceImpl.java:277 Possible null pointer dereference of doc in com.jtgh.yjpt.service.impl.bagl.jdhxpandzdwxyba.GqnwxydjbabServiceImpl.createPassTemplate(Long, String, String, String, Date, String, UserEntity, String) on exception path [Troubling(11), Normal confidence]","java:",86,94,344,90,"277 "]
["yjpt/java_src/com/jtgh/yjpt/controller/zyfzndjy/GkwxhwzyfzblhhzController.java:582 Possible null pointer dereference of result in com.jtgh.yjpt.controller.zyfzndjy.GkwxhwzyfzblhhzController.doViewInit(Long, Long) [Scary(8), Normal confidence]","java:",75,83,242,79,"582 "]
["yjpt/java_src/com/jtgh/yjpt/controller/zyfzndjy/GkwxhwzyfzblhhzController.java:284 Possible null pointer dereference of dataset in com.jtgh.yjpt.controller.zyfzndjy.GkwxhwzyfzblhhzController.print(List) on exception path [Troubling(11), Normal confidence]","java:",75,83,255,79,"284 "]
["yjpt/java_src/com/jtgh/yjpt/controller/zyfzndjy/GkwxhwzyfzblhhzController.java:504 Null pointer dereference of list in com.jtgh.yjpt.controller.zyfzndjy.GkwxhwzyfzblhhzController.audit(String, Date, GkwxhwzyfzblhhzEntity, boolean) [Scary(5), High confidence]","java:",75,83,258,79,"504 "]
["yjpt/java_src/com/jtgh/yjpt/controller/auth/ConfigController.java:121 Write to static field com.jtgh.yjpt.common.servlet.InitServlet.groupcodeMap from instance method com.jtgh.yjpt.controller.auth.ConfigController.save(Long, CodeEntity) [Of Concern(15), High confidence]","java:",62,70,270,66,"121 "]
["yjpt/java_src/com/jtgh/yjpt/dao/common/MyCustomRepository.java:112 query is null guaranteed to be dereferenced in com.jtgh.yjpt.dao.common.MyCustomRepository.findAll(Specification, Pageable) on exception path [Troubling(11), Normal confidence]","java:",59,67,243,63,"112 "]
["yjpt/java_src/com/jtgh/yjpt/controller/jsxmqasc/GkjsxmaqscController.java:81 Call to String.equals(com.jtgh.yjpt.entity.common.CodeEntity) in com.jtgh.yjpt.controller.jsxmqasc.GkjsxmaqscController$1.toPredicate(Root, CriteriaQuery, CriteriaBuilder) [Scariest(1), High confidence]","java:",70,77,279,74,"81 "]
["yjpt/java_src/com/jtgh/yjpt/controller/zyfzns/WxhwzyfznsController.java:477 Possible null pointer dereference of result in com.jtgh.yjpt.controller.zyfzns.WxhwzyfznsController.doViewInit(Long, Long) [Scary(8), Normal confidence]","java:",68,76,228,72,"477 "]
["yjpt/java_src/com/jtgh/yjpt/controller/common/JsfxxwhController.java:100 Dead store to accs in com.jtgh.yjpt.controller.common.JsfxxwhController.doSave(JsfxxwhEntity, List, Long) [Of Concern(15), High confidence]","java:",65,73,212,69,"100 "]
["yjpt/java_src/com/jtgh/yjpt/controller/jsxmqasc/GkjsxmaqscController.java:86 Call to String.equals(com.jtgh.yjpt.entity.gkgq.GqEntity) in com.jtgh.yjpt.controller.jsxmqasc.GkjsxmaqscController$1.toPredicate(Root, CriteriaQuery, CriteriaBuilder) [Scariest(1), High confidence]","java:",70,77,275,74,"86 "]
["yjpt/java_src/com/jtgh/yjpt/client/jyr/ryjbqk/RyjbqkxxService.java:37 Dead store to e in com.jtgh.yjpt.client.jyr.ryjbqk.RyjbqkxxService.<static initializer for RyjbqkxxService>() [Of Concern(15), High confidence]","java:",63,70,213,67,"37 "]
["yjpt/java_src/com/jtgh/yjpt/controller/jsxmqasc/GkjsxmaqscController.java:77 Call to String.equals(com.jtgh.yjpt.entity.jyr.JyrEntity) in com.jtgh.yjpt.controller.jsxmqasc.GkjsxmaqscController$1.toPredicate(Root, CriteriaQuery, CriteriaBuilder) [Scariest(1), High confidence]","java:",70,77,275,74,"77 "]
["yjpt/java_src/com/jtgh/yjpt/client/jyr/JyrService.java:37 Dead store to e in com.jtgh.yjpt.client.jyr.JyrService.<static initializer for JyrService>() [Of Concern(15), High confidence]","java:",51,58,184,55,"37 "]
["yjpt/java_src/com/jtgh/yjpt/entity/jyr/JyrEntity.java:498 com.jtgh.yjpt.entity.jyr.JyrEntity defines clone() but doesn't implement Cloneable [Troubling(14), High confidence]","java:",50,58,173,54,"498 "]
["yjpt/java_src/com/jtgh/yjpt/controller/zyfzns/WxhwzyfznsController.java:199 Possible null pointer dereference of dataset in com.jtgh.yjpt.controller.zyfzns.WxhwzyfznsController.print(List) on exception path [Troubling(11), Normal confidence]","java:",68,76,241,72,"199 "]
["yjpt/java_src/com/jtgh/yjpt/service/impl/sgalgl/SgalglServiceImpl.java:443 Dead store to entity in com.jtgh.yjpt.service.impl.sgalgl.SgalglServiceImpl.saveAllEntity(SgalglEntity, List, List) [Of Concern(15), High confidence]","java:",67,75,224,71,"443 "]
["yjpt/java_src/com/jtgh/yjpt/client/yjzyxxgl/zyyjdw/zyyjdw/ZyyjdwService.java:37 Dead store to e in com.jtgh.yjpt.client.yjzyxxgl.zyyjdw.zyyjdw.ZyyjdwService.<static initializer for ZyyjdwService>() [Of Concern(15), High confidence]","java:",73,80,231,77,"37 "]
["yjpt/java_src/com/jtgh/yjpt/client/bagl/yjyaba/YjyabaService.java:39 Dead store to e in com.jtgh.yjpt.client.bagl.yjyaba.YjyabaService.<static initializer for YjyabaService>() [Of Concern(15), High confidence]","java:",62,69,209,66,"39 "]
["yjpt/java_src/com/jtgh/yjpt/client/gq/GqService.java:39 Dead store to e in com.jtgh.yjpt.client.gq.GqService.<static initializer for GqService>() [Of Concern(15), High confidence]","java:",49,56,179,53,"39 "]
["yjpt/java_src/com/jtgh/yjpt/controller/bagl/jdhxpandzdwxyba/ZdwxybaController.java:72 Nullcheck of gqid at line 72 of value previously dereferenced in com.jtgh.yjpt.controller.bagl.jdhxpandzdwxyba.ZdwxybaController.list(Pageable, Long, Long, Long, Long) [Troubling(11), Normal confidence]","java:",79,86,288,83,"72 "]
["yjpt/java_src/com/jtgh/yjpt/client/jyr/gksssb/GksssbService.java:37 Dead store to e in com.jtgh.yjpt.client.jyr.gksssb.GksssbService.<static initializer for GksssbService>() [Of Concern(15), High confidence]","java:",61,68,207,65,"37 "]
["yjpt/java_src/com/jtgh/yjpt/controller/bagl/jdhxpandzdwxyba/ZdwxybaController.java:68 Nullcheck of szdid at line 68 of value previously dereferenced in com.jtgh.yjpt.controller.bagl.jdhxpandzdwxyba.ZdwxybaController.list(Pageable, Long, Long, Long, Long) [Troubling(11), Normal confidence]","java:",79,86,289,83,"68 "]
["yjpt/java_src/com/jtgh/yjpt/controller/bagl/jdhxpandzdwxyba/ZdwxybaController.java:64 Nullcheck of sqdwid at line 64 of value previously dereferenced in com.jtgh.yjpt.controller.bagl.jdhxpandzdwxyba.ZdwxybaController.list(Pageable, Long, Long, Long, Long) [Troubling(11), Normal confidence]","java:",79,86,290,83,"64 "]
["yjpt/java_src/com/jtgh/yjpt/controller/jsxmqasc/GkjsxmaqscController.java:265 Possible null pointer dereference of dataset in com.jtgh.yjpt.controller.jsxmqasc.GkjsxmaqscController.print(List) on exception path [Troubling(11), Normal confidence]","java:",70,78,245,74,"265 "]
["yjpt/java_src/com/jtgh/yjpt/controller/jsxmqasc/GkjsxmaqscController.java:279 Possible null pointer dereference of taskList in com.jtgh.yjpt.controller.jsxmqasc.GkjsxmaqscController.print(List) [Scary(8), Normal confidence]","java:",70,78,223,74,"279 "]
["yjpt/java_src/com/jtgh/yjpt/client/bagl/sgyhpxzg/ZdsgdyhpchzlqkbaService.java:39 Dead store to e in com.jtgh.yjpt.client.bagl.sgyhpxzg.ZdsgdyhpchzlqkbaService.<static initializer for ZdsgdyhpchzlqkbaService>() [Of Concern(15), High confidence]","java:",74,81,243,78,"39 "]
["yjpt/java_src/com/jtgh/yjpt/controller/jsxmqasc/GkjsxmaqscController.java:314 Suspicious comparison of Long references in com.jtgh.yjpt.controller.jsxmqasc.GkjsxmaqscController.print(List) [Scariest(1), High confidence]","java:",70,78,219,74,"314 "]
["yjpt/java_src/com/jtgh/yjpt/controller/jsxmqasc/GkjsxmaqscController.java:313 Suspicious comparison of Long references in com.jtgh.yjpt.controller.jsxmqasc.GkjsxmaqscController.print(List) [Scariest(1), High confidence]","java:",70,78,219,74,"313 "]
["yjpt/java_src/com/jtgh/yjpt/controller/jsxmqasc/GkjsxmaqscController.java:265 Possible null pointer dereference of dataset in com.jtgh.yjpt.controller.jsxmqasc.GkjsxmaqscController.print(List) [Scary(8), Normal confidence]","java:",70,78,222,74,"265 "]
["yjpt/java_src/com/jtgh/yjpt/service/impl/zyfzndjy/GkwxhwzyfzblhhzServiceImpl.java:332 Dead store to entity in com.jtgh.yjpt.service.impl.zyfzndjy.GkwxhwzyfzblhhzServiceImpl.changeAudit(String, Date, GkwxhwzyfzblhhzEntity, boolean) [Of Concern(15), High confidence]","java:",78,86,264,82,"332 "]
["yjpt/java_src/com/jtgh/yjpt/webService/yjzyxxgl/yjzjk/YjzjkWebService.java:55 Dead store to entity in com.jtgh.yjpt.webService.yjzyxxgl.yjzjk.YjzjkWebService.saveEntityAndAcc(YjzjkEntity, AccessoryEntity) [Of Concern(15), High confidence]","java:",71,78,238,75,"55 "]
["yjpt/java_src/com/jtgh/yjpt/controller/bagl/yjyaba/YjyabaController.java:251 Nullcheck of szdid at line 251 of value previously dereferenced in com.jtgh.yjpt.controller.bagl.yjyaba.YjyabaController.listNoFlow(Pageable, Long, String, Long, Date, Date, Long, Long, String) [Troubling(11), Normal confidence]","java:",69,77,305,73,"251 "]
["yjpt/java_src/com/jtgh/yjpt/controller/bagl/yjyaba/YjyabaController.java:232 Nullcheck of jjtype at line 232 of value previously dereferenced in com.jtgh.yjpt.controller.bagl.yjyaba.YjyabaController.listNoFlow(Pageable, Long, String, Long, Date, Date, Long, Long, String) [Troubling(11), Normal confidence]","java:",69,77,306,73,"232 "]
["yjpt/java_src/com/jtgh/yjpt/controller/bagl/yjyaba/YjyabaController.java:256 Nullcheck of gqid at line 256 of value previously dereferenced in com.jtgh.yjpt.controller.bagl.yjyaba.YjyabaController.listNoFlow(Pageable, Long, String, Long, Date, Date, Long, Long, String) [Troubling(11), Normal confidence]","java:",69,77,304,73,"256 "]
["yjpt/java_src/com/jtgh/yjpt/controller/bagl/yjyaba/YjyabaController.java:351 Possible null pointer dereference of dataset in com.jtgh.yjpt.controller.bagl.yjyaba.YjyabaController.print(List) on exception path [Troubling(11), Normal confidence]","java:",69,77,243,73,"351 "]
["yjpt/java_src/com/jtgh/yjpt/controller/ExportExcel.java:114 Null passed for nonnull parameter of exportExcel(String, String[], Collection, OutputStream) in com.jtgh.yjpt.controller.ExportExcel.download(String, String[], String, String, String[], HttpServletResponse, HttpServletRequest) [Scary(8), Normal confidence]","java:",52,60,316,56,"114 "]
["yjpt/java_src/com/jtgh/yjpt/client/yjzyxxgl/yjwz/yjwz/YjwzService.java:38 Dead store to e in com.jtgh.yjpt.client.yjzyxxgl.yjwz.yjwz.YjwzService.<static initializer for YjwzService>() [Of Concern(15), High confidence]","java:",67,74,217,71,"38 "]
["yjpt/java_src/com/jtgh/yjpt/client/yjzyxxgl/zyyjdw/jzryhz/YjdwJzryService.java:39 Dead store to e in com.jtgh.yjpt.client.yjzyxxgl.zyyjdw.jzryhz.YjdwJzryService.<static initializer for YjdwJzryService>() [Of Concern(15), High confidence]","java:",{"$f":"FIND(B67,A67)","v":75},{"$f":"FIND(\" \",A67)","v":82},{"$f":"LEN(A67)","v":237},{"$f":"FIND(\":\",A67)","v":79},{"$f":"RIGHT(LEFT(A67,D67),D67-F67)","v":"39 "}]
["yjpt/java_src/com/jtgh/yjpt/client/yjgl/yjpx/YjpxService.java:36 Dead store to e in com.jtgh.yjpt.client.yjgl.yjpx.YjpxService.<static initializer for YjpxService>() [Of Concern(15), High confidence]","java:",58,65,199,62,"36 "]
["yjpt/java_src/com/jtgh/yjpt/controller/check/DcController.java:413 int value cast to float and then passed to Math.round in com.jtgh.yjpt.controller.check.DcController.getzgl(String, String) [Scary(9), Normal confidence]","java:",59,67,220,63,"413 "]
["yjpt/java_src/com/jtgh/yjpt/controller/zyfzhz/GkwxhwzyfzhzController.java:419 Possible null pointer dereference of result in com.jtgh.yjpt.controller.zyfzhz.GkwxhwzyfzhzController.doViewInit(Long, Long) [Scary(8), Normal confidence]","java:",70,78,232,74,"419 "]
["yjpt/java_src/com/jtgh/yjpt/controller/sgalgl/SgalglController.java:446 Possible null pointer dereference of doc in com.jtgh.yjpt.controller.sgalgl.SgalglController.getWsgFile(String, String, Date, Date, Date, HttpServletResponse, HttpServletRequest) on exception path [Troubling(11), Normal confidence]","java:",64,72,303,68,"446 "]
["yjpt/java_src/com/jtgh/yjpt/controller/bagl/jdhxpandzdwxyba/JdhxpbaController.java:62 Nullcheck of szdid at line 62 of value previously dereferenced in com.jtgh.yjpt.controller.bagl.jdhxpandzdwxyba.JdhxpbaController.list(Pageable, Long, Long, Long, Long, Long) [Troubling(11), Normal confidence]","java:",79,86,295,83,"62 "]
["yjpt/java_src/com/jtgh/yjpt/controller/zyfzhz/GkwxhwzyfzhzController.java:216 Possible null pointer dereference of dataset in com.jtgh.yjpt.controller.zyfzhz.GkwxhwzyfzhzController.print(List) on exception path [Troubling(11), Normal confidence]","java:",70,78,245,74,"216 "]
["yjpt/java_src/com/jtgh/yjpt/client/jyr/dc/JyrdcService.java:37 Dead store to e in com.jtgh.yjpt.client.jyr.dc.JyrdcService.<static initializer for JyrdcService>() [Of Concern(15), High confidence]","java:",56,63,196,60,"37 "]
["yjpt/java_src/com/jtgh/yjpt/service/impl/zysqbp/ZysqbpServiceImpl.java:817 int value cast to float and then passed to Math.round in com.jtgh.yjpt.service.impl.zysqbp.ZysqbpServiceImpl.getbl(String, String) [Scary(9), Normal confidence]","java:",67,75,235,71,"817 "]
["yjpt/java_src/com/jtgh/yjpt/service/impl/jsxmaqsc/GkjsxmaqscServiceImpl.java:226 Potentially dangerous use of non-short-circuit logic in com.jtgh.yjpt.service.impl.jsxmaqsc.GkjsxmaqscServiceImpl.doTransfer(GkjsxmaqscEntity, List, String) [Of Concern(15), High confidence]","java:",73,81,271,77,"226 "]
["yjpt/java_src/com/jtgh/yjpt/controller/bagl/jdhxpandzdwxyba/JdhxpbaController.java:53 Nullcheck of sqdwid at line 53 of value previously dereferenced in com.jtgh.yjpt.controller.bagl.jdhxpandzdwxyba.JdhxpbaController.list(Pageable, Long, Long, Long, Long, Long) [Troubling(11), Normal confidence]","java:",79,86,296,83,"53 "]
["yjpt/java_src/com/jtgh/yjpt/controller/bagl/jdhxpandzdwxyba/JdhxpZdwxyBadjController.java:212 Possible null pointer dereference of dataset in com.jtgh.yjpt.controller.bagl.jdhxpandzdwxyba.JdhxpZdwxyBadjController.print(List) on exception path [Troubling(11), Normal confidence]","java:",86,94,277,90,"212 "]
["yjpt/java_src/com/jtgh/yjpt/service/impl/jsxmaqsc/GkjsxmaqscServiceImpl.java:442 Nullcheck of tasks at line 442 of value previously dereferenced in com.jtgh.yjpt.service.impl.jsxmaqsc.GkjsxmaqscServiceImpl.complete(WorkFlowParam, Map) [Troubling(11), Normal confidence]","java:",73,81,269,77,"442 "]
["yjpt/java_src/com/jtgh/yjpt/controller/bagl/jdhxpandzdwxyba/JdhxpbaController.java:67 Nullcheck of gqid at line 67 of value previously dereferenced in com.jtgh.yjpt.controller.bagl.jdhxpandzdwxyba.JdhxpbaController.list(Pageable, Long, Long, Long, Long, Long) [Troubling(11), Normal confidence]","java:",79,86,294,83,"67 "]
["yjpt/java_src/com/jtgh/yjpt/service/impl/yjzyxxgl/ZyyjjydwServiceImpl.java:101 Dead store to entity in com.jtgh.yjpt.service.impl.yjzyxxgl.ZyyjjydwServiceImpl.tbsj(ZyyjjydwEntity, List, List, List, List) [Of Concern(15), High confidence]","java:",71,79,237,75,"101 "]
["yjpt/java_src/com/jtgh/yjpt/controller/bagl/jdhxpandzdwxyba/JdhxpbaController.java:57 Nullcheck of ccdwid at line 57 of value previously dereferenced in com.jtgh.yjpt.controller.bagl.jdhxpandzdwxyba.JdhxpbaController.list(Pageable, Long, Long, Long, Long, Long) [Troubling(11), Normal confidence]","java:",79,86,296,83,"57 "]
["yjpt/java_src/com/jtgh/yjpt/controller/bagl/yjyaba/YjyabaController.java:162 Nullcheck of YjyabaController$1.val$gqid at line 162 of value previously dereferenced in com.jtgh.yjpt.controller.bagl.yjyaba.YjyabaController$1.toPredicate(Root, CriteriaQuery, CriteriaBuilder) [Troubling(11), Normal confidence]","java:",69,77,306,73,"162 "]
["yjpt/java_src/com/jtgh/yjpt/controller/qlyg/AlertController.java:62 Null passed for nonnull parameter of com.jtgh.yjpt.controller.BaseController.createBusinessContext(Page) in com.jtgh.yjpt.controller.qlyg.AlertController.list(SinglePageRequest, Long, AlertEntity) [Scary(8), Normal confidence]","java:",61,68,294,65,"62 "]
["yjpt/java_src/com/jtgh/yjpt/client/yjzyxxgl/yjwz/flxx/YjwzFlxxService.java:39 Dead store to e in com.jtgh.yjpt.client.yjzyxxgl.yjwz.flxx.YjwzFlxxService.<static initializer for YjwzFlxxService>() [Of Concern(15), High confidence]","java:",71,78,229,75,"39 "]
["yjpt/java_src/com/jtgh/yjpt/controller/aqsszxyssc/AqsszxysController.java:267 Possible null pointer dereference of dataset in com.jtgh.yjpt.controller.aqsszxyssc.AqsszxysController.print(List) [Scary(8), Normal confidence]","java:",70,78,222,74,"267 "]
["yjpt/java_src/com/jtgh/yjpt/controller/aqsszxyssc/AqsszxysController.java:281 Possible null pointer dereference of taskList in com.jtgh.yjpt.controller.aqsszxyssc.AqsszxysController.print(List) [Scary(8), Normal confidence]","java:",70,78,223,74,"281 "]
["yjpt/java_src/com/jtgh/yjpt/common/ApplicationContextHelper.java:27 Write to static field com.jtgh.yjpt.common.ApplicationContextHelper.appCtx from instance method com.jtgh.yjpt.common.ApplicationContextHelper.setApplicationContext(ApplicationContext) [Of Concern(15), High confidence]","java:",61,68,285,65,"27 "]
["yjpt/java_src/com/jtgh/yjpt/controller/aqsszxyssc/AqsszxysController.java:317 Suspicious comparison of Long references in com.jtgh.yjpt.controller.aqsszxyssc.AqsszxysController.print(List) [Scariest(1), High confidence]","java:",70,78,219,74,"317 "]
["yjpt/java_src/com/jtgh/yjpt/controller/yjzyxxgl/YjjynljbqkController.java:161 Dead store to yjjynljbqk in com.jtgh.yjpt.controller.yjzyxxgl.YjjynljbqkController.insertYjjynljbqk(YjjynljbqkEntity, long) [Of Concern(15), High confidence]","java:",70,78,235,74,"161 "]
["yjpt/java_src/com/jtgh/yjpt/controller/aqsszxyssc/AqsszxysController.java:103 Call to String.equals(com.jtgh.yjpt.entity.jyr.JyrEntity) in com.jtgh.yjpt.controller.aqsszxyssc.AqsszxysController$1.toPredicate(Root, CriteriaQuery, CriteriaBuilder) [Scariest(1), High confidence]","java:",70,78,276,74,"103 "]
["yjpt/java_src/com/jtgh/yjpt/client/bagl/jdwxpjwxyba/JdwxphzdwxybaService.java:39 Dead store to e in com.jtgh.yjpt.client.bagl.jdwxpjwxyba.JdwxphzdwxybaService.<static initializer for JdwxphzdwxybaService>() [Of Concern(15), High confidence]","java:",74,81,240,78,"39 "]
["yjpt/java_src/com/jtgh/yjpt/service/impl/zyfzndjy/GkwxhwzyfzblhhzServiceImpl.java:405 Possible null pointer dereference of doc in com.jtgh.yjpt.service.impl.zyfzndjy.GkwxhwzyfzblhhzServiceImpl.createBackTemplate(Long, String, String, UserEntity, String) on exception path [Troubling(11), Normal confidence]","java:",78,86,306,82,"405 "]
["yjpt/java_src/com/jtgh/yjpt/controller/aqsszxyssc/AqsszxysController.java:267 Possible null pointer dereference of dataset in com.jtgh.yjpt.controller.aqsszxyssc.AqsszxysController.print(List) on exception path [Troubling(11), Normal confidence]","java:",70,78,245,74,"267 "]
["yjpt/java_src/com/jtgh/yjpt/service/impl/zyfzndjy/GkwxhwzyfzblhhzServiceImpl.java:357 Possible null pointer dereference of doc in com.jtgh.yjpt.service.impl.zyfzndjy.GkwxhwzyfzblhhzServiceImpl.createPassTemplate(Long, String, String, UserEntity, String, Date) on exception path [Troubling(11), Normal confidence]","java:",78,86,312,82,"357 "]
["yjpt/java_src/com/jtgh/yjpt/controller/aqsszxyssc/AqsszxysController.java:316 Suspicious comparison of Long references in com.jtgh.yjpt.controller.aqsszxyssc.AqsszxysController.print(List) [Scariest(1), High confidence]","java:",70,78,219,74,"316 "]
["yjpt/java_src/com/jtgh/yjpt/client/bagl/aqpjbgjzgfals/AqpjbgjzgfalsbaService.java:39 Dead store to e in com.jtgh.yjpt.client.bagl.aqpjbgjzgfals.AqpjbgjzgfalsbaService.<static initializer for AqpjbgjzgfalsbaService>() [Of Concern(15), High confidence]","java:",78,85,250,82,"39 "]
["yjpt/java_src/com/jtgh/yjpt/controller/common/WorkFlowController.java:89 Dead store to begin in com.jtgh.yjpt.controller.common.WorkFlowController.todoList(String, Date, Date) [Of Concern(15), High confidence]","java:",66,73,209,70,"89 "]
["yjpt/java_src/com/jtgh/yjpt/controller/common/WorkFlowController.java:90 Dead store to end in com.jtgh.yjpt.controller.common.WorkFlowController.todoList(String, Date, Date) [Of Concern(15), High confidence]","java:",66,73,207,70,"90 "]
["yjpt/java_src/com/jtgh/yjpt/entity/gkgq/GqEntity.java:78 com.jtgh.yjpt.entity.gkgq.GqEntity defines clone() but doesn't implement Cloneable [Troubling(14), High confidence]","java:",50,57,172,54,"78 "]
["yjpt/java_src/com/jtgh/yjpt/client/jyr/mt/MtService.java:37 Dead store to e in com.jtgh.yjpt.client.jyr.mt.MtService.<static initializer for MtService>() [Of Concern(15), High confidence]","java:",53,60,187,57,"37 "]
["yjpt/java_src/com/jtgh/yjpt/controller/common/AccessoryController.java:274 Nullcheck of entityId at line 286 of value previously dereferenced in com.jtgh.yjpt.controller.common.AccessoryController.synUpload(Long, Long, Long, MultipartFile) [Troubling(11), Normal confidence]","java:",67,75,274,71,"274 "]
["yjpt/java_src/com/jtgh/yjpt/client/bagl/aqpjjgba/AqpjjgbaService.java:39 Dead store to e in com.jtgh.yjpt.client.bagl.aqpjjgba.AqpjjgbaService.<static initializer for AqpjjgbaService>() [Of Concern(15), High confidence]","java:",66,73,219,70,"39 "]
["yjpt/java_src/com/jtgh/yjpt/controller/bagl/aqpjjgba/AqpjjgbaController.java:271 Possible null pointer dereference of dataset in com.jtgh.yjpt.controller.bagl.aqpjjgba.AqpjjgbaController.print(List) on exception path [Troubling(11), Normal confidence]","java:",73,81,251,77,"271 "]
["yjpt/java_src/com/jtgh/yjpt/client/jyr/ck/CkService.java:37 Dead store to e in com.jtgh.yjpt.client.jyr.ck.CkService.<static initializer for CkService>() [Of Concern(15), High confidence]","java:",53,60,187,57,"37 "]
["yjpt/java_src/com/jtgh/yjpt/controller/bagl/zdsgdyhpchzlqkba/ZdsgdyhpchzlqkbaController.java:253 Possible null pointer dereference of dataset in com.jtgh.yjpt.controller.bagl.zdsgdyhpchzlqkba.ZdsgdyhpchzlqkbaController.print(List) on exception path [Troubling(11), Normal confidence]","java:",89,97,283,93,"253 "]
["yjpt/java_src/com/jtgh/yjpt/entity/map/GkxxEntity.java:112 com.jtgh.yjpt.entity.map.GkxxEntity defines clone() but doesn't implement Cloneable [Troubling(14), High confidence]","java:",51,59,175,55,"112 "]
["yjpt/java_src/com/jtgh/yjpt/client/jyr/bw/BwService.java:37 Dead store to e in com.jtgh.yjpt.client.jyr.bw.BwService.<static initializer for BwService>() [Of Concern(15), High confidence]","java:",53,60,187,57,"37 "]
["yjpt/java_src/com/jtgh/yjpt/controller/bagl/zdsgdyhpchzlqkba/ZdsgdyhpchzlqkbaController.java:106 Call to String.equals(com.jtgh.yjpt.entity.jyr.JyrEntity) in com.jtgh.yjpt.controller.bagl.zdsgdyhpchzlqkba.ZdsgdyhpchzlqkbaController$1.toPredicate(Root, CriteriaQuery, CriteriaBuilder) [Scariest(1), High confidence]","java:",89,97,314,93,"106 "]
["yjpt/java_src/com/jtgh/yjpt/controller/check/ZcController.java:584 int value cast to float and then passed to Math.round in com.jtgh.yjpt.controller.check.ZcController.getzgl(String, String) [Scary(9), Normal confidence]","java:",59,67,220,63,"584 "]
["yjpt/java_src/com/jtgh/yjpt/entity/aqpjjgxx/AqpjjgxxEntity.java:147 com.jtgh.yjpt.entity.aqpjjgxx.AqpjjgxxEntity defines clone() but doesn't implement Cloneable [Troubling(14), High confidence]","java:",60,68,193,64,"147 "]
["yjpt/java_src/com/jtgh/yjpt/client/common/gkxx/GkgkxxService.java:41 Dead store to e in com.jtgh.yjpt.client.common.gkxx.GkgkxxService.<static initializer for GkgkxxService>() [Of Concern(15), High confidence]","java:",62,69,209,66,"41 "]
["yjpt/java_src/com/jtgh/yjpt/controller/check/ZcController.java:596 int value cast to float and then passed to Math.round in com.jtgh.yjpt.controller.check.ZcController.main(String[]) [Scary(9), Normal confidence]","java:",59,67,212,63,"596 "]
["yjpt/java_src/com/jtgh/yjpt/controller/check/ZcController.java:458 Possible null pointer dereference of doc in com.jtgh.yjpt.controller.check.ZcController.warn(ZcEntity) on exception path [Troubling(11), Normal confidence]","java:",59,67,222,63,"458 "]
["yjpt/java_src/com/jtgh/yjpt/service/impl/jyr/JyrServiceImpl.java:553 Dead store to bw_add_list in com.jtgh.yjpt.service.impl.jyr.JyrServiceImpl.save(JyrEntity, List, List, List, List, List, List, String) [Of Concern(15), High confidence]","java:",61,69,237,65,"553 "]
["yjpt/java_src/com/jtgh/yjpt/service/impl/jyr/JyrServiceImpl.java:574 Dead store to ckList in com.jtgh.yjpt.service.impl.jyr.JyrServiceImpl.save(JyrEntity, List, List, List, List, List, List, String) [Of Concern(15), High confidence]","java:",61,69,232,65,"574 "]
["yjpt/java_src/com/jtgh/yjpt/service/impl/check/ZcServiceImpl.java:82 Possible null pointer dereference of res in com.jtgh.yjpt.service.impl.check.ZcServiceImpl.countZdyh(Long, String) [Scary(8), Normal confidence]","java:",62,69,213,66,"82 "]
["yjpt/java_src/com/jtgh/yjpt/client/yjzyxxgl/zyyjdw/zyryhz/YjdwZyryService.java:39 Dead store to e in com.jtgh.yjpt.client.yjzyxxgl.zyyjdw.zyryhz.YjdwZyryService.<static initializer for YjdwZyryService>() [Of Concern(15), High confidence]","java:",75,82,237,79,"39 "]

{"sheet":"Sheet3","index":2,"n_rows":0,"n_cols":0,"rows_kept":0,"cut":false,"hidden":false,"merged":[]}